{"text_format":"1","workbook":"xlsx","n_sheets":6,"sheets":["Skráning","Eyðublað - Áhættumat","Gagnabanki - (Á)hættumat","Banki","Mikilvægi ráðstafana","Áhættufylki"],"not_rendered":{"charts":0,"images":3,"macros":1,"external_links":0,"defined_names":18,"comments":2,"pivot_tables":0},"unopened":[],"bounds":{"document_bytes":16777216,"sheet_cells":100000,"rows_first":2000,"rows_last":500,"rows_between":2000,"halvings":0,"cell_chars":16384,"cell_head_chars":4096},"cells_cut":0,"cells_raw":0,"read":"whole","date_system":"1900"}

{"sheet":"Skráning","index":0,"n_rows":74,"n_cols":4,"rows_kept":74,"cut":false,"hidden":false,"merged":[]}
["FJÖLDI","VERKÞÁTTUR","HÆTTA","ATBURÐUR"]
[null,null,"Árekstur","Starfsmaðfólk eða vegfarandi verða fyrir vinnuvél eða hluta af vinnuvél"]
[null,null,"Árekstur","Starfsfólk lendir í árekstri "]
[null,null,"Árekstur","Starfsfólk verður fyrir ökutæki"]
[null,null,"Árekstur","Almennir vegfarendur verða fyrir ökutæki fyrirtækisins."]
[null,null,"Fall/hrun","Starfsfólk fellur í stiga eða tröppu"]
[null,null,"Fall/hrun","Starfsfólk fellur af vinnupalli"]
[null,null,"Fall/hrun","Starfsfólk fellur úr staur"]
[null,null,"Fall/hrun","Starfsfólk fellur úr vinnulyftu/spjóti eða mannkörfu"]
[null,null,"Fall/hrun","Starfsfólk fellur frá brún eða kanti"]
[null,null,"Fall/hrun","Starfsfólk/vegfarandi fellur í gryfju, skurð, op"]
[null,null,"Fall/hrun","Starfsfólk fellur á jafnsléttu"]
[null,null,"Fall/hrun","Starfsfólk fær yfir sig efni frá skurðbrúnum"]
[null,null,"Fall/hrun","Starfsfólk fær í sig verkfæri eða yfir sig efni. "]
[null,null,"Fall/hrun","Starfsfólk fær yfir sig hlass við hífingu"]
[null,null,"Fall/hrun","Starfsfólk fær yfir sig hlass úr gröfu"]
[null,null,"Fall/hrun","Starfsfólk fær yfir sig vörur/hluti úr hillum eða rekkum"]
[null,null,"Klemma/högg","Starfsfólk klemmir sig á handverkfæri"]
[null,null,"Klemma/högg","Starfsfólk verður fyrir hreyfanlegum hlutum vélbúnaðarins"]
[null,null,"Klemma/högg","Starfsfólk klemmist á milli hluta (t.d. hurð, hleri)"]
[null,null,"Klemma/högg","Starfsfólk klemmist á milli hluta sem hann er að bera og fyrirstöðu"]
[null,null,"Klemma/högg","Starfsfólk klemmist á  milli ásláttarbúnaðar (stroffu/keðju) og fyrirstöðu"]
[null,null,"Klemma/högg","Starfsfólk verður fyrir höggi eða klemmist vegna vinnuvéla"]
[null,null,"Klemma/högg","Starfsfólk slasast þegar lyftari/krani fer á hliðina"]
[null,null,"Klemma/högg","Starfsfólk fær yfir sig vörur frá lyftara"]
[null,null,"Hávaði","Starfsfólk verður fyrir heyrnaskemmd"]
[null,null,"Hávaði","Starfsfólk verður fyrir truflun eða þreytu"]
[null,null,"Skurður","Starfsfólk sker sig á handverkfæri/búnaði /plötum/vélbúnaði"]
[null,null,"Skurður","Starfsfólk sker sig/stingur sig á sprautunál"]
[null,null,"Aðskotahlutir","Starfsfólk fær hlut/agnir í sig þegar hlutur/efni skýst í hann"]
[null,null,"Aðskotahlutir","Starfsfólk fær flís/agnir úr ljósleiðara (glerþræðir) undir húð/inn í auga\n"]
[null,null,"Skert loftgæði","Starfsfólk verður fyrir ertingu/óþægindum í öndunarvegi "]
[null,null,"Skert loftgæði","Starfsfólk verður fyrir súrefnisskorti/eitrun í lokuðu rými"]
[null,null,"Skert loftgæði","Starfsfólk verður fyrir brennisteinsvetnismengun H2S/súrefnisskorti við vinnu í jarðgufuvirkjunum"]
[null,null,"Skert loftgæði","Starfsfólk verður fyrir mengun við logsuða / málmsuða / rafsuða"]
[null,null,"Skert loftgæði","Starfsfólk verður fyrir ertingu/ eitrun eða fær ofnæmi við vinnu með varasöm efni"]
[null,null,"Skert loftgæði","Starfsfólk finnur fyrir óþægindum, ertingu, hita/kulda vegna innilofts á vinnusvæði"]
[null,null,"Skert loftgæði","Starfsfólk verður fyrir SF6 gasmengun"]
[null,null,"Varmi ","Starfsfólk verður fyrir hitaálagi "]
[null,null,"Varmi ","Starfsfólk verður fyrir kuldaálagi "]
[null,null,"Ófullnægjandi samskipti","Starfsfólk lendir í slysi vegna ófullnægjandi samskipta/samskiptaleysi "]
[null,null,"Röng líkamsbeiting","Starfsfólk finnur fyrir álagseinkennum í stoðkerfi við skrifborðsvinnu"]
[null,null,"Röng líkamsbeiting","Starfsfólk finnur fyrir álagseinkennum og eða/ lendir í heilsutjóni"]
[null,null,"Titringur","Starfsfólk verður fyrir handar-, handleggs- og eða líkamstitringi"]
[null,null,"Bruni / sprenging","Starfsfólk brennist á heitu vatni"]
[null,null,"Bruni / sprenging","Starfsfólk brennist á heitri gufu"]
[null,null,"Bruni / sprenging","Starfsfólk brennist á heitum lögnum / flötum"]
[null,null,"Bruni / sprenging","Starfsfólk brennist/sprenging vegna varasamra efna t.d. lútur, sýrur (rafgeymar) lífræn leysiefni"]
[null,null,"Bruni / sprenging","Starfsfólk verður fyrir sprengingu vegna vinnuumhverfis"]
[null,null,"Bruni / sprenging","Starfsfólk brennist á hitagjafa (logsuða, málmsuða, rafsuða)"]
[null,null,"Bruni / sprenging","Spenging í borholu\nStarfsfólk verður fyrir óbeislaðri orku\nStórtjón á borholu og búnaði"]
[null,null,"Óbeisluð orka","Starfsfólk verður fyrir ljósboga"]
[null,null,"Óbeisluð orka","Starfsfólk fær raflost (vinna við rafmagn)"]
[null,null,"Óbeisluð orka","Starfsfólk fær í sig þrýstiloft"]
[null,null,"Óbeisluð orka","Starfsfólk fær í sig vökva/vatn                                             "]
[null,null,"Óbeisluð orka","Starfsfólk fær í sig aðskotahlut (t.d. hluta úr verkfæri, vél)"]
[null,null,"Óbeisluð orka","Starfsfólk fær raflost (vinna við jarðskaut)"]
[null,null,"Óbeisluð orka","Starfsfólk við vinnu í þrumuveðri\nStafsmaður fær raflost (vinna við raflínur) "]
[null,null,"Umhverfi","Mengun ( v/olíuleka og spilliefna ), úrgangur, rusl"]
[null,null,"Umhverfi","Fráveita - bilun í dælu-/hreinsistöð, bilun í fráveitulögn, mengun í fráveitukerfi, veðurfar"]
[null,null,"Umhverfi","Mengun (krossmengun)"]
[null,null,"Umhverfi","Affallsvatn - sem ekki fer í svelgholur eða sprungur við borteiga"]
[null,null,"Umhverfi","Neyðarlosun á vatni "]
[null,null,"Umhverfi","Styrkur brennisteinsvetnis yfir viðmiðunarmörkum"]
[null,null,"Umhverfi","Gróðuráhrif - jarðvinna og rask vegna viðhalds, framkvæmda  og/eða farartækja"]
[null,null,"Umhverfi","Losun SF6 í andrúmsloftið"]
[null,null,"Breytingar","Aukin hætta á að Starfsfólk verði fyrir slysi vegna breyttra aðstæðna"]
[null,null,"Ófullnægjandi lýsing","Starfsfólk verður fyrir óþægindum (t.d. þreyta, höfuðverkur) eða slysi vegna ófullnægjandi lýsingar við vinnu "]
[null,null,"Geislun","Starfsfólk verður fyrir ljósgeislun "]
[null,null,"Geislun","Starfsfólk verður fyrir ljósleiðarageisla"]
[null,null,"Geislun","Starfsfólk verður fyrir geilsun/áhrifum rafsegulsviðs"]
[null,null,"Vanhæfni til vinnu","Starfsfólk í hættu á að slasast vegna einbeitingarskorts"]
[null,null,"Vanhæfni til vinnu","Starfsfólk í hættu á að slasast vegna ófullnægjandi þjálfunar/hæfni"]
[null,null,"Vanhæfni til vinnu","Starfsfólk ekki hæft til vinnu vegna \"ástands\""]

{"sheet":"Eyðublað - Áhættumat","index":1,"n_rows":5,"n_cols":10,"rows_kept":5,"cut":false,"hidden":false,"merged":[[2,1,2,2]]}
["Áhættumat:",null,null,"Persónuhlífar við verkið:",null,null,null,{"$f":"IFERROR(INDEX(Áhættufylki!$E$5:$I$9,MATCH(F1,Áhættufylki!$B$5:$B$9),MATCH(G1,Áhættufylki!$E$4:$I$4)),\"\")","v":""}]
["Ábyrgð:"]
["Þátttakendur:"]
["Dagsetning:",null,null,null,null,null,null,null,{"$f":"COUNTA(D:D)-5","v":-3},{"$f":"COUNTA(A:A)","v":5}]
["VERKÞÁTTUR","HÆTTA","ATBURÐUR","ORSAKIR","RÁÐSTAFANIR","AFLEIÐINGAR","LÍKUR","ÁHÆTTUSTIG","FREKARI RÁÐSTAFANIR"]

{"sheet":"Gagnabanki - (Á)hættumat","index":2,"n_rows":54,"n_cols":8,"rows_kept":54,"cut":false,"hidden":true,"merged":[]}
[]
[null,"VERK: ",null,null,"Þátttakendur við gerð áhættumats:","Hlín Benediktsdóttir og Bjarni Reyr "]
[null,null,null,null,"Dagsetning:","2014-02-12"]
[]
[null,"Verkþáttur","Hættuflokkur","Hætta","Stutt lýsing á hættunni/ástæður hættunnar","Ráðstafanir","Ábyrgð","Leit"]
[null,null,"Fallhætta/hrunhætta","fall úr stigum/tröppum","1. Stigi/trappa gefur sig                                             2.Starfsmaður missir jafnvægið                                                     3. Stigi/trappa rennur/fellur","1. Nota viðurkennda stiga/tröppur skv. ÍST EN 131 . Sjónskoða stiga/tröppur fyrir hverja notkun.\n2. Viðhalda þriggja punkta gripi og snúa að stiga. Meta skal aðstæður hverju sinni m.t.t. veðurskilyrða.  \n3. Skoða undirlag, tryggja að það sé þétt og slétt. Stilla stiga upp með halla 1:4 og stigi nái 1m upp fyrir brún. Festa stiga efst eða halda við stigann. Stíga ekki í efsta þrep í tröppum\n",null,{"$f":"+Table10[[#This Row],[Hættuflokkur]]","v":"Fallhætta/hrunhætta"}]
[null,null,"Fallhætta/hrunhætta","fall úr vinnupöllum","Vinnupallur gefur sig og/eða vinnupallur ekki uppsettur á fullnægjandi hátt.","Vinnupallar skulu vera af viðurkenndri gerð og reistir skv. Ísl. Reglugerðum af fagaðila. Hafa skal í huga að uppfylla skilyrði um varnir á vinnupöllum. Til staðar sé handlisti (1m), hnélisti (0,5m) og fótlisti (0,15m). Festa lóðrétta stiga uppi, niðri og a.m.k. með 3 metra millibili. Trévinnupallar skulu teknir út af Vinnueftirliti Ríkisins fyrir fyrstu notkun. Sjónskoða vinnupalla fyrir hverja notkun.",null,{"$f":"+Table10[[#This Row],[Hættuflokkur]]","v":"Fallhætta/hrunhætta"}]
[null,null,"Fallhætta/hrunhætta","fall úr staurum","1. Staur gefur sig - \n2. Starfsmaður missir jafnvægið\n","1. Þar sem því er viðkomið skal nota vinnulyftu eða mannkörfu við vinnu í loftlínu. Ástandsmeta staur áður en hann er klifinn m.t.t. styrks, stöðugleika og ísingar. Nota viðurkenndan klifur og fallvarnarbúnað. \n2. Starfsmaður skal hafa hlotið fallvarna og loftlínu þjálfun áður en vinna hefst. Meta skal aðstæður hverju sinni m.t.t. veðurskilyrða. Björgunaráætlun skal vera til staðar áður en verk ef framkvæmt.\n",null,{"$f":"+Table10[[#This Row],[Hættuflokkur]]","v":"Fallhætta/hrunhætta"}]
[null,null,"Fallhætta/hrunhætta","fall úr vinnulyftum eða mannkörfum","Lyfta/spjót gefur sig","Nota viðurkenndan klifur og fallvarnarbúnað. Starfsmaður skal hafa hlotið fallvarna og loftlínu þjálfun áður en vinna hefst. Meta skal aðstæður hverju sinni m.t.t. veðurskilyrða. Björgunaráætlun skal til staðar áður en verk ef framkvæmt.",null,{"$f":"+Table10[[#This Row],[Hættuflokkur]]","v":"Fallhætta/hrunhætta"}]
[null,null,"Fallhætta/hrunhætta","fall frá brúnum/könntum (í hæð)","Starfsmaður missir jafnvægið","Halda 2m fjarlægð frá brún. Handrið skal sett ef ekki er hægt að tryggja 2m fjarlægð frá brún. Nota skal fallvarnarbúnað ef hvorki er hægt að halda 2m fjarlægð eða handrið til staðar. Nota viðurkenndan fallvarnarbúnað. Starfsmaður skal hafa hlotið fallvarna þjálfun áður en vinna hefst. Meta skal aðstæður hverju sinni m.t.t. veðurskilyrða. Björgunaráætlun skal til staðar áður en verk ef framkvæmt.",null,{"$f":"+Table10[[#This Row],[Hættuflokkur]]","v":"Fallhætta/hrunhætta"}]
[null,null,"Fallhætta/hrunhætta","fall í gryfjur/skurði","1. Brún gefur sig\n2. Starfsmaður missir jafnvægið\n3. Vegfarandi fellur í skuð\n","1. Flái/halli skal vera skv. reglum og leiðbeiningum frá vinnueftirlitinu og þeim upplýsingum sem koma fram á útgefnum teikningum. Huga skal að veðurbreytingum (frost/þíða) og gera þær ráðstafanir sem þarf til að sporna við hættuástandi.\n2. Ekki skal standa/ganga nálægt gryfju/skurðbrún. Tryggja örugga gönguleið og örugga göngubrú þar sem við á, hafa þær hreinar og greiðfærar. Göngubrýrnar skulu vera með handriði í 50cm og 1m hæð frá gólfi báðum megin á brúnni. Brúin skal ná xx cm út fyrir skurðbrún báðu megin við skurðinn á tryggu undirlagi.\n3. Séu girðingar og merkingar hannaðar fyrir verk: Fara skal eftir útgefnum teikningum og verklýsingum varðandi girðingar og merkingar frá hönnuðum                              \n3. Séu girðingar ekki sérhannaðar fyrir verk: Girða af vinnusvæði og merkja m.t.t. aðstæðna skv. reglum um Merkingu vinnusvæða og Reglur um vinnusvæðamerkingar. Fyrir öll verk gildir: Tryggja örugga gönguleið og örugga göngubrú þar sem við á, hafa þær hreinar og greiðfærar. Göngubrýrnar skulu vera með handriði í 50cm og 1m hæð frá gólfi báðum megin á brúnni. Brúin skal ná xx cm út fyrir skurðbrún báðu megin við skurðinn á tryggu undirlagi.Viðhalda merkingum og girðingum á meðan á verktíma stendur. Yfirfara þarf bæði merkingar og girðingar í lok vinnudags. Sérstaklega skal ganga frá vel um vetrartíma og þar sem illa sést til.   \n",null,{"$f":"+Table10[[#This Row],[Hættuflokkur]]","v":"Fallhætta/hrunhætta"}]
[null,null,"Fallhætta/hrunhætta","fall á janfsléttu","Starfsmaður missir jafnvægið","Halda vinnusvæðinu hreinu. Tryggja örugga og slétta gönguleiðir um vinnusvæðið. Huga skal að veðurbreytingum (hálka, snjór, rigning) og bregðast þannig við þeim að starfsmaður sé ekki í hættu á vinnusvæðinu. ",null,{"$f":"+Table10[[#This Row],[Hættuflokkur]]","v":"Fallhætta/hrunhætta"}]
[null,null,"Fallhætta/hrunhætta","hrun frá skurðbrúnum (efni)","Brún gefur sig ","Flái/halli skal vera skv. reglum og leiðbeiningum frá vinnueftirlitinu og þeim upplýsingum sem koma fram á útgefnum teikningum. Huga skal að veðurbreytingum (frost/þíða) og gera þær ráðstafanir sem þarf til að sporna við hættuástandi. Koma í veg fyrir að þungir hlutir hvíli á bakka. Efni skal vera a.m.k. 1m frá skurðbrún. Vélar og tæki skulu vera sem fjærst skurðbrún. ",null,{"$f":"+Table10[[#This Row],[Hættuflokkur]]","v":"Fallhætta/hrunhætta"}]
[null,null,"Fallhætta/hrunhætta","hrun/ fallandi hlutir eða efni","1. Lausir hlutir/verkfæri/efni of nálægt brún.\n2. Starfsmaður missir hlutir/verkfæri/efni\n3. Hlass fellur úr lyftibúnaði\n4. Hlass fellur úr gröfu, bílfarmi\n","1. Halda hlutum/verkfærum/efni sem fjærst brún. Setja upp táborð á vinnupöllum.  \n2. Tryggja/girða af svæðið fyrir neðan.\n3. Tryggja/girða af svæðið fyrir neðan. Nota viðurkenndan hífingarbúnað.Starfsmaður skal hafa hlotið viðunnandi þjálfun áður en vinna hefst. Meta skal aðstæður hverju sinni m.t.t. veðurskilyrða.\n4. Starfsmaður skal halda sig a.m.k. Xx m frá vinnuvélum\n",null,{"$f":"+Table10[[#This Row],[Hættuflokkur]]","v":"Fallhætta/hrunhætta"}]
[null,null,"Klemmihætta","Vegna handverkfæra","Starfsmaður klemmir sig vegna rangrar notkunar / beitingar verkfæra / ónýt eða léleg verkefæri","Yfirfara verkfæri áður en þau eru notuð, sjónskoða. Hlífar og öryggisbúnaður sé til staðar og í lagi á tækinu. Taka biluð/óörugg tæki úr umferð. Verkfæri teljast ekki nohæf ef öryggishlífar virka ekki. Séu vekfæri of þung skal notast við léttitæki eða fá aðstoð.",null,{"$f":"+Table10[[#This Row],[Hættuflokkur]]","v":"Klemmihætta"}]
[null,null,"Klemmihætta","Vegna vélbúnaðar","Verða fyrir hreyfanlegum hlutum vélbúnaðarins","Tryggja að öryggihlífar og öryggisbúnaður séu á búnaði. Tryggja rétta notkun á tækinu sbr. leiðbeininga framleiðanda og/eða verklagsreglum um notkun tækis.  Taka bilaðan/óöruggan vélbúnað úr umferð. (Notast við aðvörunarmerkingar ef ekki er hægt að fjarlægja búnað)",null,{"$f":"+Table10[[#This Row],[Hættuflokkur]]","v":"Klemmihætta"}]
[null,null,"Klemmihætta","Vegna hluta (aðföng, hurð, hleri)","1. Starfsmaður verður á mili hluta t.d. hurða, hlera.\n2. Starfsmaður verður á mili hlutar sem að hann er að bera og fyrirstöðu\n"," 1. Nota viðeigandi öryggisbúnað eða tryggja festingu.\n2. Nota léttitæki. Fá aðstoð við fluttning. Kanna aðstæður, fjarlægja hindranir. Hafa hendur utan skotlínu. Nota hanska.\n",null,{"$f":"+Table10[[#This Row],[Hættuflokkur]]","v":"Klemmihætta"}]
[null,null,"Klemmihætta","Vegna hífibúnaðar/hlass","Verða á milli ásláttarbúnaðar (stroffu) og hlass eða milli hlass og fyrirstöðu","Standa utan skotlínu. Stroffur skulu vera skoðaðar fyrir notkun. Tryggja skýr samskipti við kranamann. Nota stýrilínur og snerta ekki hlass. Afmarka vinnusvæð. Nota hanska.",null,{"$f":"+Table10[[#This Row],[Hættuflokkur]]","v":"Klemmihætta"}]
[null,null,"Klemmihætta","Vegna vinnuvéla","Starfsmaður verður fyrir höggi eða klemmist vegna vinnuvéla","Starfsmaður skal halda sig a.m.k. 3 m frá vinnuvélum",null,{"$f":"+Table10[[#This Row],[Hættuflokkur]]","v":"Klemmihætta"}]
[null,null,"Klemmihætta","Vegna umferðar","1. Árekstur í umferð\n2. Starfsmaður verður fyrir ökutæki\n3. Almennir vegfarendur -ökutæki-ökutæki /vegfarendur -ökutæki rekast saman.\n","1. Aka eftir aðstæðum, nota öryggisbelti og virða umferðareglur. Notkun farsíma er óheimil við akstur.\n2. Óafgirt vinnusvæði: Leggja bíl þannig að hann skýli gegn aðsteðjandi umferð, nota blikkljós, klæðast sýnileikafatnaði.                                                                 \n2. Afgirt vinnusvæði: Aðgreina vel vinnusvæði skv. MERKINGAR VINNUSVÆÐA & REGLUR UM VINNUSTVÆÐAMERKINGAR og útgefnum teikningum og verklýsingu ef þær eru til staðar. Búa til gönguleiðir og afmarka vel vinnusvæði svo gangandi starfsmenn séu ekki í hættu.\n3. Séu girðingar og merkingar ekki hannaðar: Ganga frá vinnusvæði og merkingum eins og segir til um í MERKINGAR VINNUSVÆÐA & REGLUR UM VINNUSTVÆÐAMERKINGAR.                                             \n3. Séu giðingar og merkingar hannaðar: Fara eftir útgefnum teikningum og verklýsingu varðandi girðingar og merkingar.                                                                              \n3. Fyrir öll verk gildir: Viðhalda merkingum og girðingum á meðan á verktíma stendur. Yfirfara þarf bæði merkingar og girðingar í lok vinnudags. Sérstaklega skal ganga frá vel um vetrartíma og þar sem illa sést til.\n",null,{"$f":"+Table10[[#This Row],[Hættuflokkur]]","v":"Klemmihætta"}]
[null,null,"Hætta vegna hávaða ","Heyrnatap / heyrnaskemmdir ","Vinna í umhverfi þar sem meðaltalshávaði er yfir 85 dB á 8 klst. vinnudegi og/eða þar sem hávaðatoppar fara í 110 dB eða meira.","Útiloka/draga úr hávaðavaldi. Koma í veg fyrir óþarfa skelli.  Takmarka viðveru starfsmanns í hávaðasömu umhverfi. Nota heyranhlífar/eyrnatappa.Athuga að hættumörk breytileg eftir lengd vaktar. Virða skal merkingar um heyrnahlífanotkun.",null,{"$f":"+Table10[[#This Row],[Hættuflokkur]]","v":"Hætta vegna hávaða "}]
[null,null,"Hætta vegna hávaða ","Þreyta, streita, einbeitingaskortur","Óæskilegt/óþægilegt hljóð","Útiloka/draga úr hávaðavaldi. Nota heyranhlífar/eyrnatappa.",null,{"$f":"+Table10[[#This Row],[Hættuflokkur]]","v":"Hætta vegna hávaða "}]
[null,null,"Skurðhætta ","Vegna handverkfæra / vélbúnaðar","Starfsmaður sker sig á handverkfærum / vélbúnaði","Passa uppá rétta líkamsbeitingu við vinnu.  Ekki skera að sér. Tryggja rétta notkun á verkfærinu /vélbúnaðinum sbr. Leiðbeininga framleiðanda og/eða verklagsreglum um notkun tækis. Hlífar og öryggisbúnaður sé til staðar og í lagi á verkfærinu / vélbúnaðinum. Taka bilaðan/óöruggan verkfæri / vélbúnað úr umferð. (Notast við aðvörunarmerkingar ef ekki er hægt að fjarlægja búnað)",null,{"$f":"+Table10[[#This Row],[Hættuflokkur]]","v":"Skurðhætta "}]
[null,null,"Hætta vegna aðskotahluta","Vegna handverkfæra / vélbúnaðar","Starfsmaður fær hlut í sig þegar hlutur/efni skýst í hann","Beita sér rétt við vinnu, halda sig úr skotlínu og nota verkfærin þannig að ekki stafi hætta af. Mikilvægt er að allar hlífar/varnir séu til staðar á þeim verkfærum / vélbúnaði sem við á. Nota hlífðargleraugu / andlitshlíf þegar hætta er á að efni skjótist í augu t.d. þegar unnið er með slípirokk. Nota skal rétta aukahluti á verkefærin, t.d. rétta stærð af skífum í slípirokka. ",null,{"$f":"+Table10[[#This Row],[Hættuflokkur]]","v":"Hætta vegna aðskotahluta"}]
[null,null,"Hætta vegna skertra loftgæða"," Erting/óþægindi í öndunarvegi ","Vinna í rykugu umhverfi","Tryggja loftræstingu. Rykbinda vinnusvæði (bleyta). Ryksuga frekar en sópa.  Verja öndunarfæri,  grímur. ",null,{"$f":"+Table10[[#This Row],[Hættuflokkur]]","v":"Hætta vegna skertra loftgæða"}]
[null,null,"Hætta vegna skertra loftgæða","Köfnun vegna súrefnisskorts í lokuðum rýmum","Vinna í lokuðu rými, þar sem hættulegar gastegundir geta verið til staðar.","Tryggja heimild fyrir vinnu.Starfsmaður skal hafa fengið fræðslu, þjálfun og hafa þekkingu fyrir vinnu í lokuðu rými. Mæling á andrúmslofti (súrefni & aðrar gastegundir). Nota súrefnismæli við vinnu. Loftræsa áður en vinna hefst og á meðan vinna stendur. E.v.t. fersksloftsbúnað. Vaktmaður ávallt við inngang í lokað rými. Skýrar samskiptareglur milli starfsmanns og vaktmanns. Tryggar flóttaleiðir. Björgunaráætlun til staðar. Björgunar og endurlífgunarbúnaður til staðar.  ",null,{"$f":"+Table10[[#This Row],[Hættuflokkur]]","v":"Hætta vegna skertra loftgæða"}]
[null,null,"Hætta vegna skertra loftgæða","Köfnun vegna súrefnisskorts við vinnu í jarðgufuvirkjunum","Vinna í jarðgufuvirkjunum.  Skyndilegt rof á lögnunum eða bilun í búnaði sem veldur H2S mengun á örskömmum tima.      ","Bera H2S persónumæli. Vera ekki einn við vinnu þar sem hætta er á H2S gasi.  Nota ferskloftsgrímur ef þörf er á vinnu þar sem er styrkur H2S er yfir mörkum og björgunaráætlun tiltæk. Varúð í borholuhúsum, stöðvarhúsum, í lægðum (getur safnast saman þar brennisteinsvetni) - flóttatæki tiltæk.",null,{"$f":"+Table10[[#This Row],[Hættuflokkur]]","v":"Hætta vegna skertra loftgæða"}]
[null,null,"Hætta vegna skertra loftgæða","Loftmengun /gasmyndun ","Logsuða / málmsuða / rafsuða","Almenn loftræsting. Kröftugt staðbundið afsog á föstum suðustöðum. Annars færanlegur afsogsbúnaður.  Öndunargrímur (síugrímur, ferksloftsgrímur) ef ekki hægt að tryggja fullnægjandi loftskipti. Eldvarnarklæðnaður. Aðrar persónuvarnir eins og við á.",null,{"$f":"+Table10[[#This Row],[Hættuflokkur]]","v":"Hætta vegna skertra loftgæða"}]
[null,null,"Hætta vegna skertra loftgæða","Erting /  eitrun / ofnæmi /ætandi efni í öndunarvegi","Vinna með hættuleg/hættumerkt efni/rokgjörn efni","Kynna sér vel öryggisblöð fyrir hverja notkun sem eiga að fylgja öllum hættumerktum efnum. Kynna sér vel hættu-og varnaðarsetningar á öryggisblöðum m.t.t. Verklags og notkun persónuvarna.  Mikilvægt er að allir starfsmenn sem vinni verkið hafi aðgang að þeim upplýsingum og fari yfir þær áður en þeir meðhöndli efnið. ",null,{"$f":"+Table10[[#This Row],[Hættuflokkur]]","v":"Hætta vegna skertra loftgæða"}]
[null,null,"Hætta vegna varma ","Hitaálag; t.d. sviti, aukinn hjartsláttur, slappleiki, svimi og aukin slysahætta ","Mikill hiti vegna hitagjafar / mikill raki / lítil hreyfing á lofti / líkamleg áreynsla / rangur fatnaður","Auka loftflæði, viftur.  Drekka ríkulega. Skiptivinna. Léttur klæðnaður en eftir aðstæðum og viðeigandi persónuhlífar.",null,{"$f":"+Table10[[#This Row],[Hættuflokkur]]","v":"Hætta vegna varma "}]
[null,null,"Hætta vegna varma ","Kuldaálag/ofkæling; t.d. Kaldir útlimir, minnkað snertiskyn, stirðar hreyfingar, minna viðbragð, lélegri samhæfing, minni afköst, aukin þreyta og aukin slysahætta","Mikill kuldi, mikil vindkæling og/eða bleyta","Meta nauðsyn vinnu í miklum kulda. Vinnufatnaður sem einangrar vel og hleypir út raka og í mörgum lögum (ull/flís).Rúmgóðir skór og ullarsokkar. Viðeigandi persónuhlífar. Skiptivinna. Heitir drykkir.  Athuga margfeldisáhrif þegar kuldi, vindkæling og bleyta er til staðar.",null,{"$f":"+Table10[[#This Row],[Hættuflokkur]]","v":"Hætta vegna varma "}]
[null,null,"Hætta vegna samskipta ","Ófullnægjandi samskipti / samskiptaleysi ","Ekki skýrar samskiptareglur / upplýsingaflæði ófullnægjandi / tímaþröng ","Tryggja skamskipti og upplýsingaflæði; munnleg, skrifleg og/eða fundarhöld. Passa uppá að samskipti séu tvíhliða. Gefa sér tíma til samskipta og leiðbeininga.  Huga sérstaklega að skýrum og haldgóðum upplýsingum fyrir unga starfsmenn/sumarstarfsemnn. Stuðningur og hvatning til starfsmanna. Huga sérstaklega að nýjum starfsmönnum",null,{"$f":"+Table10[[#This Row],[Hættuflokkur]]","v":"Hætta vegna samskipta "}]
[null,null,"Hætta vegna samskipta ","Misskilningur í samskiptum","Tungumálaörðugleikar / samskipti einhliða / óljós samskipti / ekki skýrar boðleiðir/  óljósar verklýsingar, leiðbeiningar / upplýsingaflæði ófullnægjandi ","Tryggja skamskipti og upplýsingaflæði; munnleg, skrifleg og/eða fundarhöld. Passa uppá að samskipti séu tvíhliða. Gefa sér tíma til samskipta og leiðbeininga.  Huga sérstaklega að skýrum og haldgóðum upplýsingum fyrir unga starfsmenn/sumarstarfsemnn. Stuðningur og hvatning til starfsmanna. Huga sérstaklega að nýjum starfsmönnum",null,{"$f":"+Table10[[#This Row],[Hættuflokkur]]","v":"Hætta vegna samskipta "}]
[null,null,"Hætta vegna rangrar líkamsbeitingar ","Álagseinkenni í stoðkerfi ","Skrifborðsvinna / stöðuvinna / röng líkamsbeiting","Rétt líkamsbeiting /sitja rétt\nHuga að sjón og lýsingu\nStilla búnað rétt; skjár, lyklaborð og mús\nHúsgögn; stilla búnað / breytileiki\nStanda upp inn á milli / teygjuæfingar\n",null,{"$f":"+Table10[[#This Row],[Hættuflokkur]]","v":"Hætta vegna rangrar líkamsbeitingar "}]
[null,null,"Hætta vegna rangrar líkamsbeitingar "," Stoðkerfisvandamál / heilsutjón","1. Að lyfta þungum byrgðum\n2. Vinna sem getur valdið miklu líkamlegu álagi (einhæf vinna, endurtekin vinna,  vinna upp fyrir sig, miklar teygjur og snúningur)\n","Rétt líkamsbeiting við vinnu\nNota léttitæki\nFá aðstoð við burð \nSkiptivinna\n\n",null,{"$f":"+Table10[[#This Row],[Hættuflokkur]]","v":"Hætta vegna rangrar líkamsbeitingar "}]
[null,null,"Hætta vegna titrings ","Álagseinkenni t.d. í fingrum, höndum, handlegg,  sjón, jafnvægi, stoðkerfi, innri líffæri, svefn. ","Vinna með tæki sem veldur handar-, handleggs- og eða líkamstitringi","Breyta starfsaðferðum. Val á vinnutækjum (sem minnsti mögulegi titringur). Huga að aukabúnaði s.s.sæti, handföng sem draga úr titringi. Skiptivinna/takmarka álag. Hlífðarfatnaður og aðrar persónuvarnir. Þjálfun starfsmanna m.t.t. Líkamsbeitingar og stillingar á búnaði.",null,{"$f":"+Table10[[#This Row],[Hættuflokkur]]","v":"Hætta vegna titrings "}]
[null,null,"Brunahætta / sprengihætta ","Bruni - heitt vatn, heit gufa, heitar lagnir","Vinna við heitt vatn, heita gufu, heitar lagnir","Gæta varúðar við vinnu í nálægð heitra lagna, heitrar gufu eða heits vatns. Vera á varðbergi í nánd við heitan vatnssósa jarðveg (verndandi skófatnaður). Sérstaka varúð við áhleypingu / lokun / loftæmingu. Tryggja að ekki sé unnt að hleypa á lögn meðan á vinnu stendur.  Ávallt að nota viðeigandi persónuhlífar.",null,{"$f":"+Table10[[#This Row],[Hættuflokkur]]","v":"Brunahætta / sprengihætta "}]
[null,null,"Brunahætta / sprengihætta ","Bruni - rafmagn","Vinna við rafmagn;   Rafbruni (snerting) háspenna, lágspenna Ljósbogabruni (leiftur) ","Vinna eftir öryggisreglunum fimm.                                        1. Fullrjúfa\n2. Tryggja gegn innsetningu\n3. Sannreyna spennuleysi\n4. Jarðtengja og skammhelypa\n5. Hylja eða girða af nálæga spennuhafa hluti\nNota straumhanska/háspennuhanska við rof og viðeigandi fatnað/ull/ljósbogafavörn ásamt öðrum viðeigandi persónuhlífum. Forðast notkun á úrum og skartgripum úr málmi þegar unnið er með rafmagn.",null,{"$f":"+Table10[[#This Row],[Hættuflokkur]]","v":"Brunahætta / sprengihætta "}]
[null,null,"Brunahætta / sprengihætta ","Bruni - hættumerkt efni","Vinna með hættumerkt efni: t.d. lútur, sýrur, lífræn leysiefni","Kynna sér vel öryggisblöð fyrir hverja notkun og skulu þau vera aðgengileg öllum starfsmönnum.  Athuga  vel hættu-og varnaðarsetningar á öryggisblöðum m.t.t. verklags og notkun persónuvarna. Forðast að eldfim efni komist í snertingu við glóð eða önnur efni sem geta stuðlað að íkveikju. Ath. rokgjörn efni hafa lágt blossamark. Tryggja góða loftræstingu.  Geymsla efna á viðeigandi hátt. Hættumerkt efni skulu alltaf vera í upprunalegum umbúðum.",null,{"$f":"+Table10[[#This Row],[Hættuflokkur]]","v":"Brunahætta / sprengihætta "}]
[null,null,"Brunahætta / sprengihætta ","Bruni- og/eða sprenging - vinna í sprengifimu vinnuumhverfi","Vinna í sprengifimu vinnuumhverfi;  brennanlegar gastegundir, vökvar, ryk","Loftræsa og tryggja góða loftræstingu á meðan vinna stendur yfir (afsog við fasta suðustaði). Gasmæla. Neistafrír búnaður. Athuga vel vinnuumhverfi m.t.t. íkveikivalda - fjarlægja rusl og eldfim efni. Verja umhverfi/rafsuðutjald. Tryggja að enginn  leki sé frá gashylkjum, slöngum eða tækjum. Einstreymislokar við suðuhandföng og bakslagslokar  við gashylki. Tóm gas- og súrhylki skal geyma aðskilin frá fullum. Við flutning skal hafa gashylki í grindum/vögnum og með hlífðarhettu yfir lokunum. Sjúkrakassi og slökkvitæki tiltækt. Nota viðeigandi persónuhlífar og klæðnað (úr eldtrefjandi efni). Brunavakt í 30 mín. eftir að vinnu lýkur.",null,{"$f":"+Table10[[#This Row],[Hættuflokkur]]","v":"Brunahætta / sprengihætta "}]
[null,null,"Brunahætta / sprengihætta ","Bruni- og/eða sprenging - vinna með hitagjafa","Vinna með hitagjafa;  logsuða, málmsuð, rafsuða","Loftræsa og tryggja góða loftræstingu á meðan vinna stendur yfir (afsog við fasta suðustaði). Gasmæla. Neistafrír búnaður. Athuga vel vinnuumhverfi m.t.t. íkveikivalda - fjarlægja rusl og eldfim efni. Verja umhverfi/rafsuðutjald. Tryggja að enginn  leki sé frá gashylkjum, slöngum eða tækjum. Einstreymislokar við suðuhandföng og bakslagslokar  við gashylki. Tóm gas- og súrhylki skal geyma aðskilin frá fullum. Við flutning skal hafa gashylki í grindum/vögnum og með hlífðarhettu yfir lokunum. Sjúkrakassi og slökkvitæki tiltækt. Nota viðeigandi persónuhlífar og klæðnað (úr eldtrefjandi efni). Brunavakt í 30 mín. eftir að vinnu lýkur.",null,{"$f":"+Table10[[#This Row],[Hættuflokkur]]","v":"Brunahætta / sprengihætta "}]
[null,null,"Umhverfishætta","Umhverfisspjöll - v. olíuleka, spilliefna, úrgangangs, rusl","Mengun ( v/olíuleka og spilliefna ), úrgangur, rusl","Eftirlit sbr.starfsleyfi. Öryggisblöð m.t.t. notkun, flutning og förgun spilliefna.Skrá hreinsun, viðgerðir, tæmingu, losun og förgun. Farartæki skoðuð m.t.t.t olíuleka.  Rusl og frágangur skilgreind í útboðsgögnum ásamt tiltekt 2 x á ári. Skráningarkerfi yfir notkun, flokkun, flutning, fögun og endurvinnslu úrgangs.",null,{"$f":"+Table10[[#This Row],[Hættuflokkur]]","v":"Umhverfishætta"}]
[null,null,"Umhverfishætta","Umhverfisspjöll - v. fráveitu","Fráveita - bilun í dælu-/hreinsistöð, bilun á fráveitulögn, mengun í fráveitukerfi, veðurfar","Fylgja áhættugreiningum í stöðluðum verkum. Ef bilun verður fara eftir viðbragðsáætlun til að lágmarka mengun, krossmengun í neysluvatslögnum, sprengihættu í lögnum, ",null,{"$f":"+Table10[[#This Row],[Hættuflokkur]]","v":"Umhverfishætta"}]
[null,null,"Umhverfishætta","Umhverfisspjöll - v. affallsvatns","Affallsvatn - sem ekki fer í svelgholur eða sprungur við borteiga","Hreinsa eða opna holur/sprungur. Loka fyrir blástur sé þess kostur. Kæking á upphituðu vatni til að draga úr hitaáhrifum á grunnvatn.",null,{"$f":"+Table10[[#This Row],[Hættuflokkur]]","v":"Umhverfishætta"}]
[null,null,"Umhverfishætta","Umhverfisspjöll - v. neyðarlosunar á vatni","Neyðarlosun á vatni vegna bráðatilfella/bilana","Sírennsli sem er leitt niður",null,{"$f":"+Table10[[#This Row],[Hættuflokkur]]","v":"Umhverfishætta"}]
[null,null,"Umhverfishætta","Umhverfisspjöll - v. brennisteinsvetnis og gróðurhúsalofttegunda","Brennisteinsvetni  og gróðurhúsalofttegundir","Útblástursháfur, hagnýting á jarðhitagasi og reglubundnar mælingar.",null,{"$f":"+Table10[[#This Row],[Hættuflokkur]]","v":"Umhverfishætta"}]
[null,null,"Umhverfishætta","Umhverfisspjöll - gróðuráhrif v. jarðvinna og rask vegna framkvæmda / byggingaframkvæmda og/eða farartækja","Gróðuráhrif - jarðvinna og rask vegna framkvæmda / byggingaframkvæmda og/eða farartækja","Ath. Sérákvæði á vatnsverndarsvæðum                                      Kortleggja mögulegt rask. Skýrar kröfur í útboðsgögn. Eftirlit með framkvæmdum á meðan framkvæmd stendur yfir og  m.t.t. frágang. Aka eftir vegum/vegslóðum. Rétt stærð vinnuvéla. Afmarka vinnusvæði. Taka upp gróður sem getur nýst við frágang. Mælingar á H2S m.t.t. áhrifa á gróður og eftirfylgni.",null,{"$f":"+Table10[[#This Row],[Hættuflokkur]]","v":"Umhverfishætta"}]
[null,null,"Hætta vegna vanhæfni til vinnu","Miklir erfiðleikar með einbeitingu í vinnu","1. Þreyta\n2. Óánægja í vinnu (pirringur, leiði)\n3. Áhyggjur\n4. Veikindi\n","1. Góður nætursvefn. Mæta úthvíld til vinnu. Jafnvægi milli vinnnu og fjölskyldulífs. Sérfræðiaðstoð.\n2. Stuðla að jákvæðu viðhorf til vinnu. Fá stuðning frá vinnufélögum. Tala út um hlutina. Utanaðkomandi aðstoð.\n3. Leita aðstoðar (innanhúss/utanhúss). Orlof. Veikindafrí.\n4. Veikindafrí. Minnkað starfshlutfall.\n",null,{"$f":"+Table10[[#This Row],[Hættuflokkur]]","v":"Hætta vegna vanhæfni til vinnu"}]
[null,null,"Hætta vegna vanhæfni til vinnu","Skortur á hæfni til starfsins","1. Leiðbeiningar liggja ekki fyrir / ekki skýrar \n2. Vantar þjálfun / reynslu\n3. Ungur starfsmaður\n4. Vantar réttindi\n","1. Útbúa, afhenda leiðbeiningar.\n2. Skipuleggja þjálfun /starfsfóstri.\n3. Starf ekki ætlað ungmönnum <18 ára\n4. Sjá til þess að starfsmenn hafi viðkomandi réttindi sem þarf til starfsins.\n",null,{"$f":"+Table10[[#This Row],[Hættuflokkur]]","v":"Hætta vegna vanhæfni til vinnu"}]
[null,null,"Hætta vegna árekstrar","Vegna vélbúnaðar","Starfsmaður verður fyrir hreyfanlegum hlutum vélbúnaðarins","Hlífar og öryggisbúnaður sé til staðar og í lagi á tækinu. Taka bilaðan/óöruggan vélbúnað úr umferð. (Notast við aðvörunarmerkingar ef ekki er hægt að fjarlægja búnað). Tryggja rétta notkun á vélbúnaðinum sbr. leiðbeininga framleiðanda og/eða verklagsreglum um notkun vélbúnaðarins.",null,{"$f":"+Table10[[#This Row],[Hættuflokkur]]","v":"Hætta vegna árekstrar"}]
[null,null,"Hætta vegna árekstrar","Vegna hluta (aðföng, hurð, hleri)","Starfsmaður rekst á t.d. hurða, hlera.","Nota viðeigandi öryggisbúnað eða tryggja festingu. ",null,{"$f":"+Table10[[#This Row],[Hættuflokkur]]","v":"Hætta vegna árekstrar"}]
[null,null,"Hætta vegna árekstrar","Vegna hífibúnaðar/hlass","Ásláttarbúnaður (stroffa) / hlass rekst á starfsmann /vegfarenda","Standa utan skotlínu. Tryggja skýr samskipti við kranamann. Nota stýrilínur og snerta ekki hlass. Afmarka vinnusvæð. ",null,{"$f":"+Table10[[#This Row],[Hættuflokkur]]","v":"Hætta vegna árekstrar"}]
[null,null,"Hætta vegna árekstrar","Vegna vinnuvéla","1. Starfsmaður verður fyrir vinnuvél eða hluta af vinnuvél\n2. Vegfarandi verður fyrir vinnuvél eða hluta af vinnuvél\n","1. Starfsmaður skal halda sig a.m.k. 3 m frá vinnuvélum\n2. Séu girðingar og merkingar hannaðar: Fara skal eftir útgefnum teikningum og verklýsingum varðandi girðingar og merkingar frá hönnuðum. Tryggja þarf að vegfarendur séu ekki í hættu vegna vinnuvéla og séu a.m.k. 3 m frá vinnuvélum, nema annað sé tekið fram af verkkaupa.\n2. Sú girðingar ekki hannaðar skal tryggja að vegfarendur séu ekki í hættu vegna vinnuvéla og séu a.m.k. 3 m frá vinnuvélum,  nema annað sé tekið fram af verkkaupa.\n",null,{"$f":"+Table10[[#This Row],[Hættuflokkur]]","v":"Hætta vegna árekstrar"}]
[null,null,"Hætta vegna árekstrar","Vegna umferðar","1. Árekstur í umferð\n2. Starfsmaður verður fyrir ökutæki\n3. Almennir vegfarendur -ökutæki-ökutæki /vegfarendur -ökutæki rekast saman.\n","1. Aka eftir aðstæðum, nota öryggisbelti og virða umferðareglur. Notkun farsíma er óheimil við akstur.\n2. Óafgirt vinnusvæði: Leggja bíl þannig að hann skýli gegn aðsteðjandi umferð, nota blikkljós, klæðast sýnileikafatnaði.         \n2. Afgirt vinnusvæði: Aðgreina vel vinnusvæði skv. MERKINGAR VINNUSVÆÐA & REGLUR UM VINNUSTVÆÐAMERKINGAR og útgefnum teikningum og verklýsingu ef þær eru til staðar. Búa til gönguleiðir og afmarka vel vinnusvæði svo gangandi starfsmenn séu ekki í hættu.\n3. Séu girðingar og merkingar ekki hannaðar: Ganga frá vinnusvæði og merkingum eins og segir til um í MERKINGAR VINNUSVÆÐA & REGLUR UM VINNUSTVÆÐAMERKINGAR.Viðhalda merkingum og girðingum á meðan á verktíma stendur. Yfirfara þarf bæði merkingar og girðingar í lok vinnudags. Sérstaklega skal ganga frá vel um vetrartíma og þar sem illa sést til.\n3. Séu girðingar og merkingar hannaðar: Fara eftir útgefnum teikningum og verklýsingu varðandi girðingar og merkingar.Viðhalda merkingum og girðingum á meðan á verktíma stendur. Yfirfara þarf bæði merkingar og girðingar í lok vinnudags. Sérstaklega skal ganga frá vel um vetrartíma og þar sem illa sést til.\n",null,{"$f":"+Table10[[#This Row],[Hættuflokkur]]","v":"Hætta vegna árekstrar"}]

{"sheet":"Banki","index":3,"n_rows":75,"n_cols":7,"rows_kept":75,"cut":false,"hidden":false,"merged":[]}
[]
["VERKÞÁTTUR","HÆTTA","ATBURÐUR","ORSAKIR","RÁÐSTAFANIR","Athugasemdir","HÆTTA2"]
[null,"Árekstur","Starfsmaðfólk eða vegfarandi verða fyrir vinnuvél eða hluta af vinnuvél","1. Viðkomandi innan skotlínu\n2. Vinnusvæði ekki afgirt eða merkingar ekki fullnægjandi","1. Starfsfólk skal halda sig a.m.k. 3 m frá vinnuvélum (utan skotlínu/snúningsradíus vélar). Tryggja augnsambandi við stjórnanda vinnuvélar.\n2. Séu girðingar og merkingar hannaðar: Fara skal eftir útgefnum teikningum og verklýsingum varðandi girðingar og merkingar frá hönnuðum. Tryggja þarf að vegfarendur séu ekki í hættu vegna vinnuvéla og séu a.m.k. 3 m frá vinnuvélum, nema annað sé tekið fram af verkkaupa.\n2. Sú girðingar ekki hannaðar skal tryggja að vegfarendur séu ekki í hættu vegna vinnuvéla og séu a.m.k. 3 m frá vinnuvélum,  nema annað sé tekið fram af verkkaupa.\n",null,"Árekstur"]
[null,"Árekstur","Starfsfólk lendir í árekstri ","1. Ekki viðeigandi réttindi\n2. Veðurskilyrði\n3. Hraðakstur\n4. Bilun í ökutæki\n5. Talað í farsíma","1. Starfsfólk hafi viðeigandi réttindi. \n2. Aka eftir aðstæðum, nota öryggisbelti.\n3. Virða umferðareglur. \n4. Fyrirbyggjandi viðhald á ökutækjum. Nota ekki ökutæki með óöruggan/lélegan öryggisbúnað.\n5. Nota handfrjálsan búnað.\n\n",null,"Árekstur"]
[null,"Árekstur","Starfsfólk verður fyrir ökutæki","Vinna í umferð ","Óafgirt vinnusvæði: Leggja bíl þannig að hann skýli gegn aðsteðjandi umferð, nota blikkljós, klæðast sýnileikafatnaði með endurskini.                                                                 \nAfgirt vinnusvæði: Aðgreina vel vinnusvæði skv. MERKINGAR VINNUSVÆÐA & REGLUR UM VINNUSTVÆÐAMERKINGAR og útgefnum teikningum og verklýsingu ef þær eru til staðar. Búa til gönguleiðir og afmarka vel vinnusvæði svo gangandi starfsfólk séu ekki í hættu.\nFyrir öll verk gildir: Viðhalda merkingum og girðingum á meðan á verktíma stendur. Yfirfara þarf bæði merkingar og girðingar í lok vinnudags. Sérstaklega skal ganga vel frá um vetrartíma og þar sem illa sést til.\n",null,"Árekstur"]
[null,"Árekstur","Almennir vegfarendur verða fyrir ökutæki fyrirtækisins.","Merkingar á vinnusvæði ekki fullnægjandi / gönguleiðir ekki skýrar","Séu girðingar og merkingar ekki hannaðar: Ganga frá vinnusvæði og merkingum eins og segir til um í MERKINGAR VINNUSVÆÐA & REGLUR UM VINNUSTVÆÐAMERKINGAR.                                             \nSéu girðingar og merkingar hannaðar: Fara eftir útgefnum teikningum og verklýsingu varðandi girðingar og merkingar.                                                                              \nFyrir öll verk gildir: Viðhalda merkingum og girðingum á meðan á verktíma stendur. Yfirfara þarf bæði merkingar og girðingar í lok vinnudags. Sérstaklega skal ganga frá vel um vetrartíma og þar sem illa sést til.\n",null,"Árekstur"]
[null,"Fall/hrun","Starfsfólk fellur í stiga eða tröppu","1  Stigi/trappa gefur sig/brotnar \n2. Skrikar fótur                                                                                             \n3. Stigi/trappa rennur/fellur vegna undirlags","1. Nota viðurkennda stiga/tröppur skv. ÍST EN 131 . Sjónskoða stiga/tröppur fyrir hverja notkun.\n2. Viðhalda þriggja punkta gripi og snúa að stiga. Meta skal aðstæður hverju sinni m.t.t. veðurskilyrða.  \n3. Skoða undirlag, tryggja að það sé þétt og slétt. Stilla stiga upp með halla 1:4 og stigi nái 1 m upp fyrir brún. Festa stiga efst eða halda við stigann. Stíga ekki í efsta þrep í tröppum.\n",null,"Fall/hrun"]
[null,"Fall/hrun","Starfsfólk fellur af vinnupalli","Vinnupallur gefur sig og/eða vinnupallur ekki uppsettur á fullnægjandi hátt.","Vinnupallar skulu vera af viðurkenndri gerð og reistir skv. Ísl. reglugerðum af fagaðila. Hafa skal í huga að uppfylla skilyrði um varnir á vinnupöllum. Til staðar sé handlisti (1m), hnélisti (0,5m) og fótlisti (0,15m). Festa lóðrétta stiga uppi, niðri og a.m.k. með 3 metra millibili. Trévinnupallar skulu teknir út af Vinnueftirliti ríkisins fyrir fyrstu notkun. Sjónskoða vinnupalla fyrir hverja notkun.",null,"Fall/hrun"]
[null,"Fall/hrun","Starfsfólk fellur úr staur","1. Staur gefur sig  \n2. Starfsfólk missir jafnvægið\n","1. Þar sem því er viðkomið skal nota vinnulyftu eða mannkörfu við vinnu í loftlínu. Ástandsmeta staur áður en hann er klifinn m.t.t. styrks, stöðugleika og ísingar. Nota viðurkenndan klifur og fallvarnarbúnað. \n2. Starfsfólk skal hafa hlotið fallvarna og loftlínu þjálfun áður en vinna hefst. Meta skal aðstæður hverju sinni m.t.t. veðurskilyrða. Starfsfólk á jörðu niðri (gæslumaður) fylgist með og hefur tiltæka björgunaráætlun sem ákveðin er í sameiningu fyrir verk. \n",null,"Fall/hrun"]
[null,"Fall/hrun","Starfsfólk fellur úr vinnulyftu/spjóti eða mannkörfu","1. Lyfta/spjót/mannkarfa gefur sig\n2. Keyrt er á vinnulyftu eða spjót\n3. Starfsfólk teygir sig of langt út fyrir","1. Nota viðurkenndan klifur-, fallvarnabelti og búnað. Starfsfólk skal hafa hlotið fallvarna- og/eða loftlínu þjálfun áður en vinna hefst. Tryggja stjórnandi tækis hafi tilskilin á tæki. Meta skal aðstæður hverju sinni m.t.t. veðurskilyrða. Gæslumaður til staðar. Björgunaráætlun útbúin áður en verk ef framkvæmt.\n2. Girða af vinnusvæði.\n3. Færa körfu eftir þörfum, standa alltaf í körfubotni.",null,"Fall/hrun"]
[null,"Fall/hrun","Starfsfólk fellur frá brún eða kanti","1. Starfsfólk missir jafnvægið\n2. Starfsfólk fellur um verkfæri/jarðveg","1. Halda 2m fjarlægð frá brún. Handrið skal sett ef ekki er hægt að tryggja 2 metra fjarlægð frá brún. Nota skal fallvarnarbúnað eða taumhaldslínu ef hvorki er hægt að halda 2 metra fjarlægð eða handrið til staðar. Nota viðurkenndan fallvarnarbúnað. Starfsfólk skal hafa hlotið fallvarna þjálfun áður en vinna hefst. Meta skal aðstæður hverju sinni m.t.t. veðurskilyrða. Gæslumaður til staðar. Björgunaráætlun skal til staðar áður en verk ef framkvæmt.\n2. Halda vinnusvæði hreinu og fjarlægja jarðveg ef hægt er.",null,"Fall/hrun"]
[null,"Fall/hrun","Starfsfólk/vegfarandi fellur í gryfju, skurð, op","1. Brún gefur sig\n2. Starfsfólk missir jafnvægið\n3. Staðið of nálægt skurði/gryfju/opi\n\n","1. Réttur flái/halli samkvæmt hönnun/áætlun eða tryggja hrunvarnir. Tryggja hrunvarnir með flága eða stoðum. Skurði, allt að 2 metra djúpa, skal tryggja með flága 3:1 fláa​ og skurði, dýpri en 2 metra, skal tryggja með 1:1 fláa eða nota stoðum. Huga skal að veðurbreytingum (frost/þíða) og gera þær ráðstafanir sem þarf til að sporna við hættuástandi.\n2 - 3. Ekki skal standa/ganga nálægt gryfju/skurðbrún/opi. Afmarka svæðið, a.m.k. 1 metra frá.\n2 - 3. Tryggja örugga gönguleið og örugga göngubrú þar sem við á, hafa þær hreinar og greiðfærar. Göngubrýrnar skulu vera með handriði í 50 cm og 1 m hæð frá gólfi báðum megin á brúnni. Brúin skal standa á tryggu undirlagi beggja vegna skurðbakkana.\n2-3. Séu girðingar og merkingar hannaðar fyrir verk: Fara skal eftir útgefnum teikningum og verklýsingum varðandi girðingar og merkingar frá hönnuðum                              \n2-3. Séu girðingar ekki sérhannaðar fyrir verk: Girða af vinnusvæði og merkja m.t.t. aðstæðna skv. reglum um Merkingu vinnusvæða og Reglur um vinnusvæðamerkingar. Fyrir öll verk gildir: Tryggja örugga gönguleið og örugga göngubrú þar sem við á, hafa þær hreinar og greiðfærar. Göngubrýrnar skulu vera með handriði í 50 cm og  1m hæð frá gólfi báðum megin á brúnni.  Brúin skal standa á tryggu undirlagi beggja vegna skurðbakkana. Viðhalda merkingum og girðingum á meðan á verktíma stendur. Yfirfara þarf bæði merkingar og girðingar í lok vinnudags. Sérstaklega skal ganga frá vel um vetrartíma og þar sem illa sést til.   \n",null,"Fall/hrun"]
[null,"Fall/hrun","Starfsfólk fellur á jafnsléttu","1. Starfsfólk fellur í hálku / missir jafnvægið\n2. Starfsfólk fellur á hálu gólfi / um verkfæri / um \"drasl\"/ um jarðveg","1. Tryggja öruggar gönguleiðir um vinnusvæðið.  Huga skal að veðurbreytingum (hálka, snjór, rigning). Vera í góðum skóm með grófum sóla, mannbroddar í mikilli hálku.\n2. Halda vinnusvæðinu hreinu og greiðfæru. Tryggja að gólf séu ekki hál.",null,"Fall/hrun"]
[null,"Fall/hrun","Starfsfólk fær yfir sig efni frá skurðbrúnum","1. Brún gefur sig \n2. Þung tæki of lægt brún","1. Réttur flái/halli samkvæmt hönnun/áætlun eða tryggja hrunvarnir. Huga skal að veðurbreytingum (frost/þíða) og gera þær ráðstafanir sem þarf til að sporna við hættuástandi. Koma í veg fyrir að þungir hlutir hvíli á bakka. Efni skal vera a.m.k. 1 m frá skurðbrún. \n2. Vélar og tæki skulu vera sem fjærst skurðbrún. ",null,"Fall/hrun"]
[null,"Fall/hrun","Starfsfólk fær í sig verkfæri eða yfir sig efni. ","1. Lausir hlutir/verkfæri/efni of nálægt brún.\n2. Starfsfólk við vinnu fyrir ofan missir hlutir/verkfæri/efni\n\n","1. Halda hlutum/verkfærum/efni sem fjærst brún. Setja upp táborð á vinnupöllum.  \n2. Tryggja/girða af svæðið fyrir neðan.\n\n",null,"Fall/hrun"]
[null,"Fall/hrun","Starfsfólk fær yfir sig hlass við hífingu","1. Ekki viðeigandi réttindi\n2. Starfsfólk stendur innan skotlínu/hættusvæðis\n3. Stroffa eða annar hífibúnaður gefur sig\n4. Blökk eða vír gefur sig \n5. Misskilningur í samskiptum\n6. Veðuraðstæður\n","1.  Kranastjórnandi hafi viðeigandi réttindi.\n2. Standa utan skotlínu/hættusvæðis. Nota stýrilínur og snerta ekki hlass. Afmarka vinnusvæði. Kranastjórnandi skal ávallt hafa góða yfirsýn. Halda byrgði eins lágt og hægt er. Aldrei hífa yfir fólk eða byggingar. Ekki yfirgefa stjórntæki með byrði hangandi í krana.\n3. Stroffur og annar hífibúnaður skulu vera skoðaðar fyrir notkun. Nota viðurkenndan hífingarbúnað.\n4. Fyrirbyggjandi viðhald á blökk og vír, skoðun frá Vinnueftirliti. Sjónskoða krana fyrir notkun\n5.  Tryggja skýr samskipti við kranamann. Starfsfólk skal hafa hlotið viðunnandi þjálfun áður en vinna hefst.\n6. Meta veðuraðstæður. Vinna óheimil yfir 20 m/sek.\n",null,"Fall/hrun"]
[null,"Fall/hrun","Starfsfólk fær yfir sig hlass úr gröfu","1. Ekki viðeigandi réttindi\n2. Mistök/misskilningur í samskiptum\n3. Búnaður bilar","1. Kranastjórnandi hafi viðeigandi réttindi.\n2. Skýr samskipti milli aðila. Starfsfólk skal halda sig a.m.k. 3 metra frá vinnuvélum.\n3. Sjónskoða vinnuvél (skoðanamiði).\n",null,"Fall/hrun"]
[null,"Fall/hrun","Starfsfólk fær yfir sig vörur/hluti úr hillum eða rekkum","1. Vörur ekki settar tryggilega í hillur/rekka\n2. Gengið á óöruggu svæði","1. Vanda röðun í hillur/rekka. Setja þyngstu hluti neðst.\n2. Merkja tryggar gönguleiðir. ",null,"Fall/hrun"]
[null,"Klemma/högg","Starfsfólk klemmir sig á handverkfæri","1. Röng notkun, beiting verkfæra\n3. Bilað, lélegt eða ónýtt verkfæri","1. Verkfæri notað eins og sagt er til um. Yfirfara verkfæri áður en þau eru notuð, sjónskoða. Hlífar og öryggisbúnaður sé til staðar og í lagi á verkfærinu. \n2.Taka biluð/óörugg verkfæri úr umferð. Séu verkfæri of þung skal notast við léttitæki eða fá aðstoð.",null,"Klemma/högg"]
[null,"Klemma/högg","Starfsfólk verður fyrir hreyfanlegum hlutum vélbúnaðarins","1. Í skotlínu/er  á hættusvæði\n2. Öryggishlífar fjarlægðar\n3. Flaksandi hár eða föt/hlutir","1. Halda sér/útlimum utan skotlínu/hættusvæðis.\n2. Tryggja að öryggishlífar og öryggisbúnaður séu á búnaði. Tryggja rétta notkun á tækinu sbr. leiðbeiningar framleiðanda og/eða verklagsreglum um notkun tækis.  Taka bilaðan/óöruggan vélbúnað úr umferð. (Notast við aðvörunarmerkingar ef ekki er hægt að fjarlægja búnað).\n3. Tryggja að hár/föt/hlutir flækist ekki í búnaði.",null,"Klemma/högg"]
[null,"Klemma/högg","Starfsfólk klemmist á milli hluta (t.d. hurð, hleri)","Hlutir á ferð (lokast, skellast - dragsúgur)","Nota viðeigandi öryggisbúnað eða tryggja festingu.\n\n",null,"Klemma/högg"]
[null,"Klemma/högg","Starfsfólk klemmist á milli hluta sem hann er að bera og fyrirstöðu"," Þungir hlutir, aðskotahlutir","Nota léttitæki. Fá aðstoð við flutning. Kanna aðstæður, fjarlægja hindranir. Hafa hendur utan skotlínu/hættusvæðis. Nota hanska.\n",null,"Klemma/högg"]
[null,"Klemma/högg","Starfsfólk klemmist á  milli ásláttarbúnaðar (stroffu/keðju) og fyrirstöðu","1. Hendur í skotlínu/á hættusvæði\n2. Misskilningur í samskiptum","1. Hendur utan skotlínu/hættusvæðis. Stroffur skulu vera skoðaðar fyrir notkun.  Nota hanska.\n2. Tryggja skýr samskipti við kranamann. ",null,"Klemma/högg"]
[null,"Klemma/högg","Starfsfólk verður fyrir höggi eða klemmist vegna vinnuvéla","1. Stendur í skotlínu/á hættusvæði\n2. Misskilningur í samskiptum","1. Starfsfólk skal vera utan hættusvæðis. Halda sig a.m.k. 3 m frá vinnuvélum.\n2. Tryggja skýr samskipti við kranamann. ",null,"Klemma/högg"]
[null,"Klemma/högg","Starfsfólk slasast þegar lyftari/krani fer á hliðina","1. Gafflar of hátt uppi\n2. Of þung byrði fyrir lyftara/krana, byrði ekki tryggilega fest\n3. Farið of hratt inn í beygju\n4. Undirlag lyftara ekki tryggt eða í halla","1. Keyra varlega með gaffla eins lágt og hægt er. Nota öryggisbelti.\n2. Tryggja að lyftari/krani sé ekki of hlaðinn, þoli þyngdina sem sett er á hann. Stappa/festa byrgði tryggilega.\n3.  Fara sérstaklega gætilega í beygjur.\n4. Tryggja öruggt undirlag fyrir lyftara/krana.",null,"Klemma/högg"]
[null,"Klemma/högg","Starfsfólk fær yfir sig vörur frá lyftara","1. Keyrt of hratt\n2. Farið of hratt í beygjur\n3. Lyftara hemlað snögglega\n4. Starfsfólk í of mikilli nálægð við lyftara\n5. Lyftari of hlaðinn/byrði ekki tryggilega fest","1. Keyra varlega með gaffla eins lágt og hægt er. \n2. Fara sérstaklega gætilega í beygjur.\n3. Ekki hemla snögglega nema í neyð.\n4. Gangandi starfsmenn gæti að sér, noti merktar gönguleiðir. Ná augnsambandi við lyftarabílstjóra ef fara þarf inn á vinnusvæði lyftara. \n5. Tryggja að lyftari valdi byrðinni. Strappa/festa óörugga byrði á gafflana.",null,"Klemma/högg"]
[null,"Hávaði","Starfsfólk verður fyrir heyrnaskemmd","Vinna í umhverfi þar sem meðaltalshávaði er yfir 85 dB á 8 klst. vinnudegi og/eða þar sem hávaðatoppar fara í 110 dB eða meira.","1. Útiloka/draga úr hávaðavaldi sé þess kostur.\n2. Hávaðasöm vinnusvæði (>87db eða miklir hávaðatoppar) skulu hafa viðeigandi öryggismerkingar.   \n3. Koma í veg fyrir óþarfa skelli við vinnu.\n4. Láta starfsmann vita um hávaðasöm vinnurými. Takmarka viðveru starfsmanns í hávaðasömu umhverfi.\n5. Nota heyrnahlífar/eyrnatappa. Val á heyrnarhlífum/eyrnatöppum þarf að miðast út frá hávaða í vinnumhverfi starfsfólks, svo vörn sé fullnægjandi.\n6. Virða skal merkingar um heyrnahlífanotkun. Athuga að hættumörk eru breytileg eftir lengd vaktar. ",null,"Hávaði"]
[null,"Hávaði","Starfsfólk verður fyrir truflun eða þreytu","Vinna í umhverfi þar sem er óæskilegt/óþægilegt hljóð ","Útiloka/draga úr hávaðavaldi sé þess kostur. Nota Heyrnatól/heyrnahlífar/eyrnatappa.",null,"Hávaði"]
[null,"Skurður","Starfsfólk sker sig á handverkfæri/búnaði /plötum/vélbúnaði","1. Verkfæri ekki beitt rétt\n2. Öryggishlífar ekki á\n3. Ekki rétt val á verkfæri eða verkfærahlutum\n4. Skarpar / beittar brúnir ","1. Passa uppá rétta líkamsbeitingu við vinnu.  Ekki skera að sér. Tryggja rétta notkun á verkfærinu /vélbúnaðinum sbr. leiðbeiningar framleiðanda og/eða verklagsreglum um notkun verkfæris. \n2. Sjónskoða verkfæri/vélbúnað. Ath. að hlífar og öryggisbúnaður séu til staðar og í lagi á verkfærinu/ vélbúnaðinum. Taka bilað/óörugg verkfæri/vélbúnað úr umferð. Óöruggt/bilað verkfæri skal merkja tryggilega svo það fari ekki í umferð. Tryggja viðgerð. \n3. Vanda val á verkfærum/verkfærahlutum m.t.t. til verksins.\n4. Nota hanska sem verja (val út frá verki). Merkja skarpar brúnir, þar sem því er við komið til að forðast slys.\n5. Við málmskurð skal tryggja að afskurður falli í skurðarbakka. Nota logskurðargleraugu/hjálm.",null,"Skurðir"]
[null,"Skurður","Starfsfólk sker sig/stingur sig á sprautunál","Nál tekin upp með berum höndum (án hanska) og/eða án áhalda/verkfæra","1. Nota skurðþolna hanska (EN388) og nota tiltækt áhald (sköfu, skólfu, töng)\n2. Taka nál/sprautu upp á endanum sem er fjærst oddinum (ekki reyna að setja hulsu á nálina)\n3. Komið nál fyrir í stunguhelt íláti ( t.d. gosflösku) og fargið í spillefnageymslu Samstæðu eða hjá Sorpu\n4. Tilkynna um stungunálaóhapp í tilkynningagrunninn\nFyrsta hjálp: \n- Þrýsta hæfilega á sárið til að fá það til að blæða\n- Þvo svæðið með sápuvatni, sóthreinsa og plástra\n- Fara á heilsugæslustöð / lækni m.t.t. ráðgjafar og mögulegar bólusetningar"]
[null,"Aðskotahlutir","Starfsfólk fær hlut/agnir í sig þegar hlutur/efni skýst í hann","1. Í skotlínu \n2. Hlutur ekki tryggilega festur","1. Beita sér rétt við vinnu, halda sig úr skotlínu og nota verkfærin þannig að ekki stafi hætta af. Mikilvægt er að allar hlífar/varnir séu til staðar. Nota öryggisgleraugu / andlitshlíf þegar hætta er á að efni skjótist í augu.        \n2. Festa niður hluti eins og hægt er. Nota skal rétta verkfærahluti, t.d. rétta stærð af skífum í slípirokka. ",null,"Aðskotahlutir"]
[null,"Aðskotahlutir","Starfsfólk fær flís/agnir úr ljósleiðara (glerþræðir) undir húð/inn í auga\n","1. Í skotlínu\n2. Klipping / splæsing","1. Nota öryggisgleraugu við vinnu.\n2. Snerta ekki augu við vinnu og þvo hendur vel að verki loknu. \n3. Við frágang, nota hanska. Ganga vel frá vinnusvæði, setja afklippur af ljósleiðara í þar til gerð box og þeim síðan fargað sem spilliefni.\n4. Nota skal límband eða ryksugu til að ná afklippum upp af vinnusvæði.",null,"Aðskotahlutir"]
[null,"Skert loftgæði","Starfsfólk verður fyrir ertingu/óþægindum í öndunarvegi ","Vinna í rykugu umhverfi","Tryggja loftræstingu. Rykbinda vinnusvæði (bleyta). Ryksuga frekar en sópa.  Verja öndunarfæri,  grímur. ",null,"Skert loftgæði"]
[null,"Skert loftgæði","Starfsfólk verður fyrir súrefnisskorti/eitrun í lokuðu rými","Hættulegar gastegundir geta verið til staðar","Tryggja heimild fyrir vinnu. Vinna samkvæmt undirbúningsgátlista (EBO-210). Starfsfólk skal hafa fengið fræðslu, þjálfun og hafa þekkingu fyrir vinnu í lokuðu rými. Mæling á andrúmslofti (súrefni & aðrar gastegundir). Yfirfara staðargátlista (EBO-213). Nota súrefnismæli við vinnu. Loftræsa áður en vinna hefst og á meðan vinna stendur. E.v.t. ferskloftsbúnað. Gæslumaður ávallt við inngang í lokað rými. Skýrar samskiptareglur milli starfsfólk og vaktmanns. Tryggar flóttaleiðir. Björgunaráætlun til staðar.  ",null,"Skert loftgæði"]
[null,"Skert loftgæði","Starfsfólk verður fyrir brennisteinsvetnismengun H2S/súrefnisskorti við vinnu í jarðgufuvirkjunum","Vanmat á aðstæðum.\nFyrirbyggjandi aðgerðir ekki nægjanlegar\nGas til staðar víða í kerfum virkjanna         ","Bera kvarðaðan H2S persónumæli. Mæli skal kvarða a.m.k. á 2 vikna fresti (sjá LBO-225).  Ef von er á gasi,  skal vinna samkvæmt gátlista ONV-E-120 þ.e. að vinna með ferskloftsgrímu, vera 3 saman og hafa björgunaráætlun tiltæka. \nEf möguleiki er á óvæntum gasskotum þ.e. gasi í lágum gasstyrk (<50 ppm) er heilgríma með kolafilter valkostur. Ef H2S mælir fer í gang (>10 ppm) skal ávallt fara í skjól frá gasinu. ATH kolagrímur eru ekki ætlaðar sem varnarbúnaður við vinnu í gasi. Ávallt skulu starfsmenn vinna tveir saman og skipta um kolafilter komist hann í tæri við gas. \nÍ hverju tilfelli þarf að greina hvort hægt sé að læsa og hvernig og nota LMP ferli.",null,"Skert loftgæði"]
[null,"Skert loftgæði","Starfsfólk verður fyrir mengun við logsuða / málmsuða / rafsuða","Loftmengun /gasmyndun við vinnu","Almenn loftræsting. Kröftugt staðbundið afsog á föstum suðustöðum. Annars færanlegur afsogsbúnaður.  Öndunargrímur (síugrímur, ferskloftsgrímur) ef ekki hægt að tryggja fullnægjandi loftskipti. Eldvarnarklæðnaður. Aðrar persónuvarnir eins og við á.",null,"Skert loftgæði"]
[null,"Skert loftgæði","Starfsfólk verður fyrir ertingu/ eitrun eða fær ofnæmi við vinnu með varasöm efni","Vinna með varasöm efni/rokgjörn efni","Kynna sér vel öryggisblöð fyrir hverja notkun sem eiga að fylgja öllum varasömum efnum. Kynna sér vel hættu-og varnaðarsetningar á öryggisblöðum m.t.t. verklags og notkun persónuvarna. Geymsla efna á viðeigandi og tryggan hátt. Varast að blanda saman efnum án þess að þekkja eiginleika þeirra. Varasöm efni skulu vera í upprunalegum umbúðum.",null,"Skert loftgæði"]
[null,"Skert loftgæði","Starfsfólk finnur fyrir óþægindum, ertingu, hita/kulda vegna innilofts á vinnusvæði","1. Þrif ekki góð\n2. Dragsúgur, of heitt, kalt eða rakt loft\n3. Reykingar\n","1. Þrifaáætlun\n2. Hitastig 16-22°C eftir eðli vinnunnar. Hæfilegt rakastig 30-50 %. Koma skal í veg fyrir dragsúg og kulda, t.d. frá opnum dyrum/gluggum. Hæfileg almenn loftræsting, loftskipti í samræmi við þarfir, ferskloft hreint og upphitað með jafnri dreifingu, staðsetning loftinntaka, halda hávaða frá loftræstingu í lágmarki, reglubundið viðhald. Þjónustubók.\n3. Reyklaus vinnustaður (reykingar í þar til gerðu rými/svæði)",null,"Skert loftgæði"]
[null,"Skert loftgæði","Starfsfólk verður fyrir SF6 gasmengun","Uppsöfnun á lofttegund SF6  (er þyngra en andrúmsloft)\nLeki frá búnaði\nLeki við áfyllingu\nIlla loftræst rými ","Nota O2 mæla og loftræsa vel ef grunur er á leka og áður en farið er í rými.\nYfirgefa rými samstundis ef mælar sýna lækkun á O2 gildi. \nBoð berst til stjórnstöðvar OR um leka.\nÍ neyðartilvikum skal hringja í 112.\nÍ viðhaldsvinnu þarf að tryggja réttar persónuhlífar; hanska og andlitsgrímur (duft getur valdið ertingu í húð, augum og slímhimnum).",null,"Skert loftgæði"]
[null,"Varmi ","Starfsfólk verður fyrir hitaálagi ","Mikill hiti vegna hitagjafar/mikill raki/lítil hreyfing á lofti/líkamleg áreynsla/rangur fatnaður","Auka loftflæði, viftur.  Drekka ríkulega. Skiptivinna. Léttur klæðnaður en eftir aðstæðum og viðeigandi persónuhlífar.",null,"Varmi "]
[null,"Varmi ","Starfsfólk verður fyrir kuldaálagi ","Mikill kuldi, mikil vindkæling og/eða bleyta","Meta nauðsyn vinnu í miklum kulda. Vinnufatnaður sem einangrar vel og hleypir út raka og í mörgum lögum. Rúmgóðir skór og ullarsokkar. Viðeigandi persónuhlífar. Skiptivinna. Heitir drykkir.  Athuga margfeldisáhrif þegar kuldi, vindkæling og bleyta er til staðar.",null,"Varmi "]
[null,"Ófullnægjandi samskipti","Starfsfólk lendir í slysi vegna ófullnægjandi samskipta/samskiptaleysi ","Ekki skýrar samskiptareglur/upplýsingaflæði ófullnægjandi/tímaþröng. Tungumálaörðugleikar/ ekki skýrar boðleiðir/óljósar verklýsingar og leiðbeiningar/viðeigandi fjarskiptatæki ekki til staðar eða notuð","Tryggja samskipti og upplýsingaflæði; munnleg, skrifleg og/eða fundarhöld. Passa uppá að samskipti séu tvíhliða. Gefa sér tíma til samskipta og leiðbeininga. Notkun fjarskiptabúnaðar þar sem við á. Huga sérstaklega að skýrum og haldgóðum upplýsingum fyrir unga starfsmenn/sumarstarfsmenn. Huga sérstaklega að nýjum starfsmönnum. Tryggja að starfsmenn fái nægan tíma til verka og fórni ekki örygginu í framkvæmdinni.",null,"Ófullnægjandi samskipti"]
[null,"Röng líkamsbeiting","Starfsfólk finnur fyrir álagseinkennum í stoðkerfi við skrifborðsvinnu","Skrifborðsvinna/stöðuvinna /röng líkamsbeiting","Rétt líkamsbeiting /sitja rétt/beint bak\nHuga að sjón og lýsingu\nStilla búnað rétt; skjár, lyklaborð og mús\nHúsgögn; stilla búnað/breytileiki\nStanda upp inn á milli/teygjuæfingar\n",null,"Röng líkamsbeiting"]
[null,"Röng líkamsbeiting","Starfsfólk finnur fyrir álagseinkennum og eða/ lendir í heilsutjóni","1. Að lyfta þungum byrgðum\n2. Vinna sem getur valdið miklu líkamlegu álagi (einhæf vinna, endurtekin vinna,  vinna upp fyrir sig, miklar teygjur og snúningur)\n","Rétt líkamsbeiting við vinnu \nHuga að sjón og lýsingu\nFá aðstoð við burð eða nota léttitæki\nSkiptivinna\nStanda upp inn á milli \n\n",null,"Röng líkamsbeiting"]
[null,"Titringur","Starfsfólk verður fyrir handar-, handleggs- og eða líkamstitringi","Vinna með tæki sem veldur handar-, handleggs- og eða líkamstitringi (t.d. jarðvegsþjöppur, lofthamar, brothamar)","Breyta starfsaðferðum. Val á vinnutækjum (sem minnsti mögulegi titringur). Huga að aukabúnaði s.s. sæti, handföng sem draga úr titringi. Skiptivinna/takmarka álag. Hlífðarfatnaður og aðrar persónuvarnir. Þjálfun starfsmanna m.t.t. Líkamsbeitingar og stillingar á búnaði.",null,"Titringur"]
[null,"Bruni / sprenging","Starfsfólk brennist á heitu vatni","Vinna við heitt vatn, slettur, heitur jarðvegur, ótímabær áhleyping, sýnatökur","Greina hvað skal læsa og hvernig og nota LMP ferli.  Gæta varúðar við vinnu í nálægð við heitt vatn. Vera á varðbergi í nánd við heitan vatnssósa jarðveg (verndandi skófatnaður, heilgalli). Ræsa frá verkstað. Sérstaka varúð við áhleypingu / lokun / lofttæmingu. Tryggja að ekki sé unnt að hleypa á lögn meðan á vinnu stendur. Læsa handvirkum lokum og taka rafstýrða loka úr rekstri.  Ávallt að nota viðeigandi persónuhlífar (ath. sérstaklega hanska, skófatnað og heilgalla).",null,"Bruni / sprenging"]
[null,"Bruni / sprenging","Starfsfólk brennist á heitri gufu","Vinna við heita gufu, óvænt gufuskot, sýnatökur","Greina hvað skal læsa og hvernig og nota LMP ferli. Gæta varúðar við vinnu í nálægð við heita gufu.  Sérstaka varúð við áhleypingu / lokun / lofttæmingu. Tryggja að ekki sé unnt að hleypa á lögn meðan á vinnu stendur.  Hinkra með vinnu ef gufa byrgir sýn. Ávallt að nota viðeigandi persónuhlífar (hanska).",null,"Bruni / sprenging"]
[null,"Bruni / sprenging","Starfsfólk brennist á heitum lögnum / flötum","Vinna við eða í kringum heitar lagnir / heita fleti\nBert á milli hanska og ermi","Gæta varúðar við vinnu í kringum heitar lagnir / heita fleti. Forðast að snerta heitar lagnir / heita fleti.   Ávallt að nota viðeigandi persónuhlífar (uppháa hanska).",null,"Bruni / sprenging"]
[null,"Bruni / sprenging","Starfsfólk brennist/sprenging vegna varasamra efna t.d. lútur, sýrur (rafgeymar) lífræn leysiefni","Vinna með varasöm (hættumerkt) efni: t.d. lútur, sýrur, lífræn leysiefni.\nSlettur, röng blöndun á efnum","Kynna sér vel öryggisblöð fyrir hverja notkun og skulu þau vera aðgengileg öllum starfsmönnum.  Athuga  vel hættu-og varnaðarsetningar á öryggisblöðum m.t.t. verklags og notkun persónuvarna. Forðast slettur með því að fara gætilega. Forðast að eldfim efni komist í snertingu við glóð eða önnur efni sem geta stuðlað að íkveikju. \nAth. rokgjörn efni hafa lágt blossamark. Tryggja góða loftræstingu.  Geymsla efna á viðeigandi hátt, sum hver í læstum skáp. Varasöm efni skulu alltaf vera í upprunalegum umbúðum.",null,"Bruni / sprenging"]
[null,"Bruni / sprenging","Starfsfólk verður fyrir sprengingu vegna vinnuumhverfis","Vinna í sprengifimu vinnuumhverfi;  brennanlegar gastegundir, vökvar, ryk geta ollið sprengingu við neista","Loftræsa og tryggja góða loftræstingu á meðan vinna stendur yfir (afsog við fasta suðustaði). Gasmæla. Neistafrír búnaður. Athuga vel vinnuumhverfi m.t.t. íkveikivalda - fjarlægja rusl og eldfim efni. Verja umhverfi/rafsuðutjald. Tryggja að enginn  leki sé frá gashylkjum, slöngum eða tækjum. Einstreymislokar við suðuhandföng og bakslagslokar  við gashylki. Tóm gas- og súrhylki skal geyma aðskilin frá fullum. Við flutning skal hafa gashylki í grindum/vögnum og með hlífðarhettu yfir lokunum. Nota viðeigandi persónuhlífar og klæðnað (úr eldtefjandi efni). Brunavakt í 30 mín. eftir að vinnu lýkur.",null,"Bruni / sprenging"]
[null,"Bruni / sprenging","Starfsfólk brennist á hitagjafa (logsuða, málmsuða, rafsuða)","Vinna með hitagjafa;  logsuða, málmsuða, rafsuða, ","Framkvæmd vinnu á leyfilegu vinnusvæði. Loftræsa og tryggja góða loftræstingu á meðan vinna stendur yfir (afsog við fasta suðustaði). Gasmæla. Neistafrír búnaður. Athuga vel vinnuumhverfi m.t.t. íkveikivalda - fjarlægja rusl og eldfim efni. Verja umhverfi/rafsuðutjald. Tryggja að enginn  leki sé frá gashylkjum, slöngum eða tækjum. Einstreymislokar við suðuhandföng og bakslagslokar  við gashylki. Tóm gas- og súrhylki skal geyma aðskilin frá fullum. Við flutning skal hafa gashylki í grindum/vögnum og með hlífðarhettu yfir lokunum. Slökkvitæki tiltækt. Nota viðeigandi persónuhlífar og klæðnað (úr eldtefjandi efni). Við suðu á sinkhúðuðum hlutum skal nota ferskloftshjálm/grímur. Við málmskurð skal huga að neistaflugi og skerma viðkomandi svæði af. Nota logskurðargleraugu/hjálm. Brunavakt í 30 mín. eftir að suðuvinnu lýkur. ",null,"Bruni / sprenging"]
[null,"Bruni / sprenging","Spenging í borholu\nStarfsfólk verður fyrir óbeislaðri orku\nStórtjón á borholu og búnaði","Uppsafnað gas í borholu brennur/springur","Mæla hvort gasríkar borholur séu farnar að byggja sjálfar upp þrýsting.",null,"Bruni / sprenging"]
[null,"Óbeisluð orka","Starfsfólk verður fyrir ljósboga","Vinna við rafmagn, unnið undir spennu, ótímabær áhleyping","Vinna eftir öryggisreglunum fimm.                                        \n1. Fullrjúfa\n2. Tryggja gegn innsetningu\n3. Sannreyna spennuleysi\n4. Jarðtengja og skammhleypa\n5. Hylja eða girða af nálæga spennuhafa hluti\nGreina hvað skal læsa og hvernig og nota LMP ferli.\nNota straumhanska/háspennuhanska við rof og viðeigandi fatnað/ull/ljósbogafatnað ásamt öðrum viðeigandi persónuhlífum. Forðast að vera með úr eða skartgripi úr málmi þegar unnið er með rafmagn.",null,"Óbeisluð orka"]
[null,"Óbeisluð orka","Starfsfólk fær raflost (vinna við rafmagn)","Vinna við rafmagn, unnið undir spennu, ótímabær áhleyping","Vinna eftir öryggisreglunum fimm.                                      \n1. Fullrjúfa\n2. Tryggja gegn innsetningu\n3. Sannreyna spennuleysi\n4. Jarðtengja og skammhleypa\n5. Hylja eða girða af nálæga spennuhafa hluti\nGreina hvað skal læsa og hvernig og nota LMP ferli.\nNota straumhanska/háspennuhanska við rof og viðeigandi fatnað/ull/ljósbogafatnað ásamt öðrum viðeigandi persónuhlífum. Forðast að vera með úr eða skartgripi úr málmi þegar unnið er með rafmagn.",null,"Óbeisluð orka"]
[null,"Óbeisluð orka","Starfsfólk fær í sig þrýstiloft","1. Vinna við loftdælingu á t.d. hjólbarða                                    \n2. Vinna með þrýstibúnað, hylki, lagnir","1. Skorða hjól til að koma í veg fyrir að felguhlutar geti losnað eða hjólbarði springi.                                                                                                        2. Skoða loftslöngur, tengingar og loka áður en þrýstingi er hleypt á. Reglulegt eftirlit með búnaði.\nNota öryggisgleraugu og, ef þörf krefur, heyrnarhlífar.\nEkki nota þrýstiloft til að hreinsa fatnað eða starfsmenn.\nEf aftengja þarf einhverja tengingu eða fjarlægja hlut/verkfæri skal ganga úr skugga um að slökkt hafi verið á loftþrýstingi og tappað af.\nNota öryggisklemmur til að koma í veg fyrir að slangan sláist utan í einhvern ef hún losnar.\n","ATH. reglur um þrýstibúnað 571/2000","Óbeisluð orka"]
[null,"Óbeisluð orka","Starfsfólk fær í sig vökva/vatn                                             ","1. Vinna við útskolun á brunahana \n2. Vinna við lagnir (opna inn á lagnir)                                           ","1. Ef aftengja þarf tengingu eða fjarlægja verkfæri skal ganga úr skugga um að búið sé að afþrýsta og tappað af. Fullvissa sig um að brunahani hafi verið lokaður, lok séu fulllokuð. Standa utan skotlínu. Afmarka vinnusvæði og halda vegfarendum frá. \n2. Þegar verið er að opna inná lagnir þarf að afþrýsta lagnir eða þann kerfishluta sem verið er að vinna á.                                                                                                                                            \n",null,"Óbeisluð orka"]
[null,"Óbeisluð orka","Starfsfólk fær í sig aðskotahlut (t.d. hluta úr verkfæri, vél)","Vinna við vélknúinn búnað (t.d. handverkfæri, glussatjakk og/eða við vélar)","Sjónskoða tæki/vélar & tengingar fyrir notkun. Reglulegt eftirlit með búnaði.                                                                                                                                                                       \nNota öryggisgleraugu og, ef þörf krefur, heyrnarhlífar.\nEf aftengja þarf einhverja tengingu eða fjarlægja verkfæri skal ganga úr skugga um að slökkt hafi verið á þrýstingi og tappað af. Ekki skal standa í skotlínu.\nAlmennt:\n1. Ekki brjóta upp á rafmagnssnúrur                                                                                                                             2. Forðast að rafmagnssnúra komast í snertingu við vatn, olíu, gufu eða raka\n3. Ekki skilja verkfæri eftir í gangi\n4. Ekki meðhöndla rafmagnsverkfæri með blautum höndum, í miklum raka eða úti eftir rigningu\n5. Ekki taka rafmagnsverkfæri úr sambandi án þess að slökkva á því fyrst\n6. Ekki skipta um bor, skífu o.s.frv. án þess að slökkva á verkfærinu og taka það úr sambandi                                    7. Bilaðan búnað skal merkja sérstaklega, taka úr umferð.",null,"Óbeisluð orka"]
[null,"Óbeisluð orka","Starfsfólk fær raflost (vinna við jarðskaut)","Unnið við jarðskaut sem er í rekstri (er rofið)","1. Rjúfið aldrei jarðskaut í kerfum sem eru í rekstri.\n2. Vinna eftir öryggisreglunum 5 og nota lásakerfi (LMP)\n3. Tryggja að allir noti einangraða öryggisskó og hlífðarhanska með spennuvottun.\n4. Hætta vinnu strax ef hættuástand myndast og ekki mæla spennu ef jarðskaut hefur verið rofið.\n5. Tryggja reglulega þjálfun um virkni, hættu og vinnuaðferðir við jarðskaut.\n",null,"Óbeisluð orka"]
[null,"Óbeisluð orka","Starfsfólk við vinnu í þrumuveðri\nStafsmaður fær raflost (vinna við raflínur) ","Þrumuveður\nElding fer í raflínur/rafbúnað","1. Fylgjast með veðurspá m.t.t. þrumuveðurs\n2. Ef þrumuveður þá skal forðast alla málmhluti útivið; svo sem, raflínur/rafbúnað, girðingar, vélar, tæki o.s.frv.\n3. Ef þrumuveður þá skal forðast að vera í nánd við nánd við loftlínur, rafmagnsvirki og möstur \n4. Ef minnsti grunur leikur á að eldingu slái niður nærri vinnustað skal stöðva alla vinnu og koma sér í skjól "]
[null,"Umhverfi","Mengun ( v/olíuleka og spilliefna ), úrgangur, rusl","Olíuleki af vélum og tækjum, frágangur spilliefna ekki sem skyldi, umgengni ekki góð","Eftirlit með starfsleyfum. Fylgja eftir öryggisblöðum m.t.t. notkun, flutning og förgun spilliefna. Skrá hreinsun, viðgerðir, tæmingu, losun og förgun. Farartæki skoðuð m.t.t. olíuleka. Tilhögun frágangs og umgengni tilgreint í útboðsgögnum ásamt tiltekt. Skráningarkerfi yfir notkun, flokkun, flutning, förgun og endurvinnslu úrgangs. Fylgja flokkunarkerfi í hvívetna og úrgangi komið til viðurkennds móttökuaðila. ",null,"Umhverfi"]
[null,"Umhverfi","Fráveita - bilun í dælu-/hreinsistöð, bilun í fráveitulögn, mengun í fráveitukerfi, veðurfar","Áhættugreiningu ekki fylgt \nBilun í búnaði","Fylgja áhættugreiningum í stöðluðum verkum. Ef bilun verður að fara eftir viðbragðsáætlun til að lágmarka mengun, krossmengun í neysluvatnslögnum, sprengihættu í lögnum.",null,"Umhverfi"]
[null,"Umhverfi","Mengun (krossmengun)","Þrifum ábótavant, umgengni ekki góð","Gefa sér góðan tíma í þrif á fötum, verkfærum og bílum. Nota klór og \"færeying\", heitt vatn og sápu. Vera með auka stígvél og ytri hlífðarfatnað til þess að nota í fráveitu.",null,"Umhverfi"]
[null,"Umhverfi","Affallsvatn - sem ekki fer í svelgholur eða sprungur við borteiga","Óhreinar holur","Hreinsa eða opna holur/sprungur. Loka fyrir blástur sé þess kostur. Kæling á upphituðu vatni til að draga úr hitaáhrifum á grunnvatn.",null,"Umhverfi"]
[null,"Umhverfi","Neyðarlosun á vatni ","Vegna bráðatilfella eða bilana í búnaði/kerfi","Sírennsli sem er leitt niður.",null,"Umhverfi"]
[null,"Umhverfi","Styrkur brennisteinsvetnis yfir viðmiðunarmörkum","Bilun í búnaði, óhagstæð veðurskilyrði","Reglubundnar mælingar og áframhaldandi hreinsun. ",null,"Umhverfi"]
[null,"Umhverfi","Gróðuráhrif - jarðvinna og rask vegna viðhalds, framkvæmda  og/eða farartækja","Engir vegaslóðar, þungir bílar/vinnuvélar, keyrt um viðkvæm svæði (votlendi)","Ath. Sérákvæði á vatnsverndarsvæðum.                                                                                                         Kortleggja mögulegt rask. Skýrar kröfur í útboðsgögn. Eftirlit með framkvæmdum á meðan framkvæmd stendur yfir og við verklok m.t.t. frágangs. Aka eftir vegum/vegslóðum. Rétt stærð vinnuvéla (val við hæfi m.t.t. stærðar & þyngdar. Afmarka vinnusvæði. Skipuleggja vinnu á viðkvæmum svæðum m.a. út frá veðurfari. Taka upp gróður sem getur nýst við frágang. Mælingar á H2S m.t.t. áhrifa á gróður og eftirfylgni.",null,"Umhverfi"]
[null,"Umhverfi","Losun SF6 í andrúmsloftið","Leki frá búnaði\nLeki við áfyllingu","Þrýstingsmælar eru á búnaði og gefa þeir viðvaranir vegna leka. Aðvörun berst til stjórnstöðvar OR ef gasþrýstingur fellur og við slíkri aðvörun skal bregðast við tafarlaust.\nReglubundið eftirlit  í dreifistöðvar er unnið samkvæmt eftirlitsröð í DMM kerfi.  Í eftirliti er m.a. kannað með loftræstiblásara (tryggja loftræsingu), þrýstiloka, magn SF6 á rofa og hitamyndun. \nTilkynna til heilbrigðiseftirlits hvers umdæmis og til Umhverfisstofnunar um umhverfisóhapp vegna SF6 mengunar.\nÍ neyðartilvikum hringja í 112.",null,"Umhverfi"]
[null,"Breytingar","Aukin hætta á að Starfsfólk verði fyrir slysi vegna breyttra aðstæðna","Breyting á forsendum, ferlum\nBreyting á vélum og tækjum \nBreyting  í vinnuumhverfi (t.d. veðurfar)\nMannlegi þátturinn (vera annars hugar, þreyta, álag)\n","Uppfæra áhættumat og ráðstafanir miðað við breyttar forsendur, ferli, aðstæður.\nStaldra við. \nSjónskoða búnað. \nUpplýsa alla hlutaðeigandi.",null,"Breytingar"]
[null,"Ófullnægjandi lýsing","Starfsfólk verður fyrir óþægindum (t.d. þreyta, höfuðverkur) eða slysi vegna ófullnægjandi lýsingar við vinnu ","Vinna þar sem lýsing er ófullnægjandi eða óviðeigandi","Nýta dagsbirtu svo mikið sem kostur er og/eða tryggja nægilega raflýsingu.\nEf sólarljós/birta veldur of miklum hita, birtu og/eða glampa skal gera draga úr lýsingu og/eða skerma af birtu.\nNota höfuðljós og færanleg vinnuljós eftir þörfum.",null,"Ófullnægjandi lýsing"]
[null,"Geislun","Starfsfólk verður fyrir ljósgeislun ","Vinna þar sem hætta er á geislun; útfjólublá geislun, sýnileg geislun, innrauð geislun, leysigeislun eð ósamfasa geislun)","Meta skal og/eða mæla þá mögulegu hættu sem getur fylgt tilbúinni ljósgeislun m.t.t. álags á starfsmanninn og viðmiðunarmarka.\nDraga úr ljósgeislun eins og kostur er eða halda henni í lágmarki. \nGera viðeigandi mælingar til að tryggja að unnið sé í vinnuumhverfi með geislun undir viðmiðunarmörkum.\nNotkun á viðeigandi persónuhlífum.\nEf starfsmenn kunna að verða fyrir álagi yfir viðmiðunarmörk þá skal tryggja heilsufarsskoðun.",null,"Geislun"]
[null,"Geislun","Starfsfólk verður fyrir ljósleiðarageisla","Vinna þar sem hætta er á ljósgeisla í auga frá ljósleiðara","Vera meðvitaður um hvort ljósgeislun sé frá leiðaranum þegar unnið er með hann. Horfa aldrei í geislann ef kveikt er á honum. Nota mælitæki til staðfestingar. \n",null,"Geislun"]
[null,"Geislun","Starfsfólk verður fyrir geilsun/áhrifum rafsegulsviðs","Mikil nálægð við spennuhafa 132 kV rafmagnsstrengi\n","Hafa samband við stjórnstöð áður en farið er inn í aðveitustöð - TILKYNNINGASKYLDA. \nTakmarka skal nánægð við strengi ásamt snertingu við þá. Skoða skal og meta aðstæður við hvert verk m.t.t. mögulegs rafsegulsviðs með viðeigandi sérfræðingum. \nATH. Starfsmenn sem eru með ígrædd lækningatæki (gangráð), utanáliggjandi tæki (insúlíndælur) og þunguð kona eru í sérstakri hættu."," ","Geislun"]
[null,"Vanhæfni til vinnu","Starfsfólk í hættu á að slasast vegna einbeitingarskorts","1. Þreyta\n2. Óánægja í vinnu (pirringur, leiði, einelti, kynbundin áreitni, kynferðisleg áreitni)\n3. Áhyggjur\n4. Veikindi\n","1. Góður nætursvefn. Mæta úthvíld til vinnu. Jafnvægi milli vinnu og fjölskyldulífs. \n2. Stuðla að jákvæðu viðhorf til vinnu. Fá stuðning frá vinnufélögum, tala út um hlutina. Leita ráða hjá sérteymi  starfsmannamála. Utanaðkomandi aðstoð/ráðgjöf. \n3. Leita aðstoðar (innanhúss/utanhúss). Orlof. Veikindafrí.\n4. Veikindafrí. Minnkað starfshlutfall.\n",null,"Vanhæfni til vinnu"]
[null,"Vanhæfni til vinnu","Starfsfólk í hættu á að slasast vegna ófullnægjandi þjálfunar/hæfni","1. Leiðbeiningar liggja ekki fyrir / ekki skýrar \n2. Vantar þjálfun / reynslu\n3. Ungur starfsfólk / sumarafleysing\n4. Vantar réttindi\n","1. Útbúa, afhenda leiðbeiningar.\n2. Skipuleggja þjálfun /starfsfóstri.\n3. Starf ekki ætlað starfsmönnum <18 ára. Tryggja að starfsmenn séu hæfir til verksins áður en þeir vinna sjálfstætt.\n4. Sjá til þess að starfsmenn hafi viðkomandi réttindi sem þarf til starfsins.\n",null,"Vanhæfni til vinnu"]
[null,"Vanhæfni til vinnu","Starfsfólk ekki hæft til vinnu vegna \"ástands\"","1. Þunguð kona\n2. Starfsfólk hefur orðið fyrir meiðslum (léttavinna)\n3. Undir áhrifum lyfja, fíkniefna eða áfengis\n4. Vegna vanlíðan, andlegrar/félagslegrar\n","1. Meta hvert tilfelli fyrir sig m.t.t. áhættumats, tryggja réttindi og tryggja viðeigandi starf.\n2. Veita möguleika á léttavinnu meðan ástand varir.\n3. Regluleg fræðsla til stjórnenda um fíknisjúkdóma og einkenni þeirra.\n4. Starfsfólk leiti til næsta stjórnanda, til starfsmannamála/starfsmannastjóra og/eða til ráðgjafar á vegum fyrirtækisin til að ræða málin og koma í farveg.",null,"Vanhæfni til vinnu"]

{"sheet":"Mikilvægi ráðstafana","index":4,"n_rows":0,"n_cols":0,"rows_kept":0,"cut":false,"hidden":false,"merged":[]}

{"sheet":"Áhættufylki","index":5,"n_rows":9,"n_cols":9,"rows_kept":9,"cut":false,"hidden":false,"merged":[[1,0,3,0],[0,1,0,8],[1,1,1,3],[1,4,1,8],[2,2,3,2],[2,3,3,3]]}
[null,"ÁHÆTTUFYLKI"]
[null,"AFLEIÐINGAR",null,null,"LÍKUR"]
[null,null,"Heilbrigði                               (Andlegt, líkamlegt og/eða félagslegt)","Persónuöryggi","Gerist sjaldnar en á 100 ára fresti.","Gerist á 10-100 ára fresti.","Gerist á 1-10 ára fresti.","Gerist 1-2 sinnum á ári.","Gerist oftar en 2 sinnum á ári."]
[null,null,null,null,"1. Mjög ólíklegt","2. Ólíklegt","3. Hugsanlegt","4. Líklegt","5. Mjög líklegt"]
[null,"1. Mjög miklar","Fjölda dauðsföll eða alvarleg veikindi/meiðsl sem veldur óvinnufærni fjölda manns.","Fjöldi dauðsfalla eða varanlegur skaði fjölda manns.","Mikil áhætta","Óásættanleg áhætta","Óásættanleg áhætta","Óásættanleg áhætta","Óásættanleg áhætta"]
[null,"2. Miklar","Dauðsfall eða óafturkræfar afleiðingar á heilbrigði. Afleiðingar sem geta valdið óvinnufærni. Viðvarandi krónískt ástand og/eða mjög alvarleg skammtíma áhrif.","Dauðsfall eða óafturkræfur skaði (starfsmaður mætir ekki aftur til vinnu) hjá einum eða fleiri einstaklingum.","Mikil áhætta","Mikil áhætta","Óásættanleg áhætta","Óásættanleg áhætta","Óásættanleg áhætta"]
[null,"3. Miðlungs","Alvarlegar, afturkræfar afleiðingar á heilbrigði sem í flestum tilvikum felur í sér vinnutap.","Fjarveruslys/alvarlegt slys, afturkræf meiðsli eða minniháttar óafturkræf örorka hjá einum eða fleirum einstaklingum. Felur í sér vinnutap.","Nokkur áhætta","Nokkur áhætta","Mikil áhætta","Mikil áhætta","Óásættanleg áhætta"]
[null,"4. Litlar","Afturkræfar afleiðingar á heilbrigði sem í flestum tilfellum þarfnast aðhlynningar heilbrigðisstarfsfólks.","Skyndihjáparslys, afturkræf meiðsl sem þarfnast meðhöndlunar en hafa lítil eða engin áhrif á starfshæfni einstaklingsins. Þarfnast aðhlynningar heilbrigðisstarfsfólks í flestum tilfellum.","Lítil áhætta","Lítil áhætta","Nokkur áhætta","Mikil áhætta","Mikil áhætta"]
[null,"5. Mjög litlar","Minniháttar og afturkræfar afleiðingar á heilbrigði.","Minniháttar slys, skammtíma óþægindi eða einkenni.","Lítil áhætta","Lítil áhætta","Lítil áhætta","Nokkur áhætta","Nokkur áhætta"]